Workbook

Sheet Examples (hidden)
B1: Black | C1: CIE red | D1: CIE grey 40% | E1: CIE grey 70% | F1: CIE grey | G1: CIE grey 25% | H1: CIE red 50% | I1: CIE red 30% | L1: Black solid | M1: CIE red solid | N1: CIE grey 70% | O1: Black dashes | P1: CIE red dashes | Q1: CIE grey 70% dashes | S1: X value | T1: 1st Y value | U1: 2nd Y value | X1: Black | Y1: CIE red | Z1: CIE red 70% | AA1: CIE grey 40%
A2: 2003-04 | B2: 36.19 | C2: 36.88 | D2: 21.56 | E2: 5.36 | F2: 3.01 | G2: 10 | H2: 3.01 | I2: 10 | K2: 2003-04 | L2: 33.19 | M2: 36.88 | N2: 21.56 | O2: 5.36 | P2: 3.01 | Q2: 10 | S2: 1.8 | T2: 10 | U2: 17 | W2: 2003-04 | X2: 33.19 | Y2: 36.88 | Z2: 21.56 | AA2: 5.36
A3: 2004-05 | B3: 39.39 | C3: 32.02 | D3: 21.6 | E3: 7.01 | F3: 3.36 | G3: 12 | H3: 3.36 | I3: 12 | K3: 2004-05 | L3: 39.39 | M3: 32.02 | N3: 21.6 | O3: 7.01 | P3: 3.36 | Q3: 12 | S3: 2.3 | T3: 12 | U3: 9 | W3: 2004-05 | X3: 39.39 | Y3: 32.02 | Z3: 21.6 | AA3: 7.01
A4: 2005-06 | B4: 42.78 | C4: 29.91 | D4: 18.35 | E4: 6.33 | F4: 2.63 | G4: 14 | H4: 2.63 | I4: 14 | K4: 2005-06 | L4: 42.78 | M4: 29.91 | N4: 18.35 | O4: 6.33 | P4: 2.63 | Q4: 14 | S4: 3.7 | T4: 16 | U4: 14 | W4: 2005-06 | X4: 42.78 | Y4: 29.91 | Z4: 18.35 | AA4: 6.33
A5: 2006-07 | B5: 42.13 | C5: 26.53 | D5: 21.6 | E5: 7.01 | F5: 2.72 | G5: 16 | H5: 2.72 | I5: 16 | K5: 2006-07 | L5: 42.13 | M5: 26.53 | N5: 21.6 | O5: 7.01 | P5: 2.72 | Q5: 16 | S5: 4.1 | T5: 8 | U5: 23 | W5: 2006-07 | X5: 42.13 | Y5: 26.53 | Z5: 21.6 | AA5: 7.01
A6: 2007-08 | B6: 41.69 | C6: 24.76 | D6: 23.98 | E6: 7 | F6: 2.57 | G6: 18 | H6: 2.57 | I6: 18 | K6: 2007-08 | L6: 41.69 | M6: 24.76 | N6: 23.98 | O6: 7 | P6: 2.57 | Q6: 18 | S6: 5.5 | T6: 14 | U6: 27 | W6: 2007-08 | X6: 41.69 | Y6: 24.76 | Z6: 23.98 | AA6: 7
A7: 2008-09 | B7: 39.39 | C7: 32.02 | D7: 21.6 | E7: 7.01 | F7: 3.36 | G7: 12 | H7: 3.36 | I7: 12 | K7: 2008-09 | L7: 39.39 | M7: 32.02 | N7: 21.6 | O7: 7.01 | P7: 3.36 | Q7: 12 | W7: 2008-09 | X7: 39.39 | Y7: 32.02 | Z7: 21.6 | AA7: 7.01
A8: 2009-10 | B8: 42.13 | C8: 26.53 | D8: 21.6 | E8: 7.01 | F8: 2.72 | G8: 16 | H8: 2.72 | I8: 16 | K8: 2009-10 | L8: 42.13 | M8: 26.53 | N8: 21.6 | O8: 7.01 | P8: 2.72 | Q8: 16 | W8: 2009-10 | X8: 42.13 | Y8: 26.53 | Z8: 21.6 | AA8: 7.01
A9: 2010-11 | B9: 45 | C9: 22 | D9: 26 | E9: 8 | F9: 2 | G9: 20 | H9: 2 | I9: 20 | K9: 2010-11 | L9: 45 | M9: 22 | N9: 26 | O9: 8 | P9: 2 | Q9: 20 | W9: 2010-11 | X9: 45 | Y9: 22 | Z9: 26 | AA9: 8
A11: – en rule for when needed

Sheet Description
B3: Taxi model - 2013 fare review
B8: Contents | F8: Installing solver and enabling macros
F10: For Microsoft 2010:
B11: Worksheet | C11: Purpose
F12: Install Solver
B13: Sim_Template | C13: This worksheet should be copied and used to undertake a simulation, to model industry outcomes with different fares and licence numbers | F13: 1. Go to the File menu and scroll down to Options.
F14: 2. Choose Add-ins
B15: Inputs and assumptions | C15: This worksheet sets out the assumptions and input data that underpin the taxi model | F15: 3. Choose Manage: Excel Add-ins and select Go…
F16: 4. Check if Solver Add-in is ticked. If not tick it. Select OK.
B17: Base model | C17: This worksheet characterises the Sydney taxi industry for the year 2012/13. This is the baseline for the model. Calibration is undertaken of the model against input data.
F18: Enable macros
F19: 1. Go to the File menu and scroll down to Options
F20: 2. Choose Trust Center
F21: 3. Select Trust Center Settings
F22: 4. Select Macro Settings
B23: Steps to use the model | F23: 5. Choose Enable all macros. Select OK.
B26: 1. Make sure solver is installed and macros are enabled | F26: For Microsoft 2007
B27: 2. Copy Sim_Template to a new worksheet, such as Sim_1 | F27: 1. Select the Office button and choose Excel options.
B28: 3. Change the green cells to create a new simulation | F28: 2. Then proceed from ‘Choose Add-ins’ step onwards above.
B29: 4. Run the macro "RUN MODEL" from the simulation sheet
B30: 5. Check that Solver has found an appropriate solution through comparison of Q* and Q* flat. There are multiple solutions.
B31: 6. Extract results as required
B33: Colour coding
B35: Simulation inputs
B36: Key outputs
B37: Input data
B38: Assumptions
B42: Model structure
B44: The taxi model is a combination of 3 equations.
C45: 1. A demand equation, linking demand for taxi services to the (real) price of services and waiting time
C46: 2. A waiting time equation, linking the average waiting time to the number of taxi on the road and the share taken up by demand
C47: 3. A taxi entry condition, linking the decision of a taxi to drive a shift to the returns available. This is capped by the number of licences available.
B48: The model is broken into 14 shifts, for each weekday and weeknight
B52: Model equations
B54: The model allows for solution of quantity of tax services (Q), waiting time (W) and number of taxis (T) using 3 options for taxi entry.
B55: 1. Fixed taxi numbers based on the number of licences available
B56: 2. Free entry of taxis but an upward sloping cost curve for additional taxis that enter
B57: 3. Free entry of taxis and a flat cost curve.
B58: Solutions are obtained for each case and appropriate values then selected by the model.
B59: Demand equation
B62: Waiting time equation
B66: Taxi numbers equation
B68: Free entry, upward sloping supply
B71: Free entry, flat supply
B74: Fixed entry

Sheet Inputs and assumptions
U1: Source/Notes
A2: Assumptions by shift
A3: Day | B3: Description | C3: Unit | D3: Monday | E3: Tuesday | F3: Wednesday | G3: Thursday | H3: Friday | I3: Saturday | J3: Sunday | K3: Monday | L3: Tuesday | M3: Wednesday | N3: Thursday | O3: Friday | P3: Saturday | Q3: Sunday
A4: Shift | D4: Day | E4: Day | F4: Day | G4: Day | H4: Day | I4: Day | J4: Day | K4: Night | L4: Night | M4: Night | N4: Night | O4: Night | P4: Night | Q4: Night | S4: DO NOT DELETE
A5: Price elasticity of demand | B5: Impact of a 1% price decrease on demand | C5: Unit | D5: 0.8 | E5: 0.8 | F5: 0.8 | G5: 0.8 | H5: 0.8 | I5: 0.8 | J5: 0.8 | K5: 0.8 | L5: 0.8 | M5: 0.8 | N5: 0.8 | O5: 0.8 | P5: 0.8 | Q5: 0.8 | S5: Yes
A6: Weekend labour cost premium applied | B6: Yes if the shift is a weekend | C6: Yes/No | D6: No | E6: No | F6: No | G6: No | H6: No | I6: Yes | J6: Yes | K6: No | L6: No | M6: No | N6: No | O6: Yes | P6: Yes | Q6: Yes | S6: No
A7: Revenue per taxi | B7: Revenue per taxi | C7: $ | D7: 263.8 | E7: 259.5 | F7: 264.1 | G7: 268.6 | H7: 282.9 | I7: 276.2 | J7: 279 | K7: 258.9 | L7: 283 | M7: 309.3 | N7: 341.2 | O7: 423.4 | P7: 426.7 | Q7: 275 | U7: CIE survey undertaken in October 2011 (including GST)
A8: Share of standard taxis on the road | B8: The proportion of non-WAT taxis on the road | C8: Per cent | D8: 80.51806543 | E8: 81.27663018 | F8: 82.12163046 | G8: 85.62553515 | H8: 82.28093073 | I8: 59.74686969 | J8: 53.92299986 | K8: 65.29732991 | L8: 73.02747428 | M8: 76.48401104 | N8: 81.35104533 | O8: 87.932784 | P8: 82.45657332 | Q8: 53.53463517 | U8: Sourced from CIE Survey 2012, based on network data provided by Combined Communications Networks and adjusted by the CIE.
A9: Share of current trips at standard distance rate (10 pm - 6 am) | B9: The proportion of trips in each shift for which the standard distance rate currently applies (rather than the night time distance rate) | C9: Per cent | D9: 0.9 | E9: 0.9 | F9: 0.9 | G9: 0.9 | H9: 0.9 | I9: 0.9 | J9: 0.9 | K9: 0.75 | L9: 0.75 | M9: 0.75 | N9: 0.75 | O9: 0.6 | P9: 0.4 | Q9: 0.75
A10: If the surcharge hours of operation changed to | B10: =Sim_template!T154 -> 5 pm until 5 am | C10: Per cent | D10: 0.95 | E10: 0.95 | F10: 0.95 | G10: 0.95 | H10: 0.95 | I10: 0.95 | J10: 0.95 | K10: 0.2 | L10: 0.2 | M10: 0.2 | N10: 0.2 | O10: 0.15 | P10: 0.05 | Q10: 0.2
A11: =A10 -> If the surcharge hours of operation changed to | B11: =Sim_template!T155 -> 12 am until 5 am | C11: Per cent | D11: 0.95 | E11: 0.95 | F11: 0.95 | G11: 0.95 | H11: 0.95 | I11: 0.95 | J11: 0.95 | K11: 0.85 | L11: 0.85 | M11: 0.85 | N11: 0.85 | O11: 0.7 | P11: 0.5 | Q11: 0.85
A12: W_base | B12: Baseline waiting time | C12: Minutes | D12: 7.933993399 | E12: 7.933993399 | F12: 7.933993399 | G12: 7.933993399 | H12: 7.731132075 | I12: 7.731132075 | J12: 7.7125 | K12: 7.060283688 | L12: 7.060283688 | M12: 7.060283688 | N12: 7.060283688 | O12: 9.166112957 | P12: 9.166112957 | Q12: 9.954545455 | U12: IPART 2012 Survey (Taverner)
A13: Maximum proportion of taxis on the road for each shift | D13: =$C$55+MAX(D8-PERCENTILE($D$8:$Q$8,$C$57),0)/(MAX($D$8:$Q$8)-PERCENTILE($D$8:$Q$8,$C$57))*$C$56 -> 0.8285193593 | E13: =$C$55+MAX(E8-PERCENTILE($D$8:$Q$8,$C$57),0)/(MAX($D$8:$Q$8)-PERCENTILE($D$8:$Q$8,$C$57))*$C$56 -> 0.8348091526 | F13: 0.8418156435 | G13: 0.8708689789 | H13: 0.843136514 | I13: 0.76 | J13: 0.76 | K13: 0.76 | L13: 0.7664096058 | M13: 0.7950701803 | N13: 0.8354261809 | O13: 0.89 | P13: 0.8445928901 | Q13: 0.76
B14: 2012/13 Regulated Fares (including GST)
B15: Flagfall ($) | C15: 3.5 | F15: Colour coding
B16: Standard kilometre charge ($/km) | C16: 2.14 | F16: Input data
B17: Night kilometre charge ($/km) | C17: =ROUND(2.568,2) -> 2.57 | F17: Assumptions
B18: Waiting time ($/hour when vehicle slower than 26km/hour) | C18: 55.3
B19: Booking fee ($/booking) | C19: 2.4
B20: GST | C20: 0.1
B22: Costs of a standard taxi (excluding GST) ($2011/12)
B23: Labour cost ($/hour) | C23: =H31 -> 10 | F23: Operator costs (/taxi/yr) | H23: Amount ($2011/12) | I23: % Variable | U23: From CIE Survey 2012, for a weekday.
B24: Weekend labour cost premium ($ per hour) | C24: =H32 -> 2 | F24: Operator administration | H24: 9223
B25: Operator variable costs ($/km) | C25: =SUMPRODUCT(H25:H26,I25:I26)/C45 -> 0.09684579439 | F25: Maintenance | H25: 7562 | I25: 0.5
B26: Operator costs (fixed, non plate, $/year) | C26: =SUM(H24:H28) - SUMPRODUCT(H25:H26,I25:I26) -> 32621.5 | F26: Insurance | H26: 13163 | I26: 0.5
B27: Fuel cost ($/km) | C27: =H33/C45 -> 0.136588785 | F27: Vehicle lease | H27: 5805
B28: Cleaning ($/night shift) | C28: 11 | F28: Network fees | H28: 7231
B29: For calculation of peak licence value:
B30: Annual fixed costs to be apportioned over fewer shifts | C30: =H25+H26+H28-SUMPRODUCT(H25:H26,I25:I26) -> 17593.5 | F30: Driver costs | H30: ($2011/12)
B31: Cost escalation from 2011/12 to 2012/13 | C31: 0.037 | F31: Labour ($/hr) | H31: 10 | U31: Urban taxi cost index
F32: Weekend labour premium ($/hr) | H32: 2
B33: Current Taxi licence numbers | F33: Fuel ($/taxi/yr) | H33: 14615 | U33: From Transport for NSW Nov 2012
B34: Fringe | C34: 14 | F34: Cleaning ($/night shift) | H34: 11
B35: Unrestricted | C35: 4729
B36: WAT | C36: 618
B37: PAL | C37: 286
B38: Unrestricted + fringe | C38: =SUM(C34:C35) -> 4743
B39: Total non-PAL | C39: =SUM(C34:C36) -> 5361
B40: Total | C40: =SUM(C34:C37) -> 5647
B42: Other assumptions
B43: Hours per shift (no.) | C43: 10 | U43: CIE survey
B44: Average trip length (kms) | C44: 7 | U44: BTS survey, provided by IPART
B45: Total km travelled /taxi/year | C45: 107000
B46: Number of shifts operated per year | C46: 552
B47: Share of trips with booking fee (per cent) | C47: 0.2 | U47: Based on IPART assumption for standard fare, confirmed by figures from CIE survey 2012.
B48: Speed when on waiting time (km/hour) | C48: =26/2 -> 13 | U48: Waiting time covers all speeds from 0 to 26 kilometres per hour. Based on half of maximum speed for waiting time.
B49: Average speed (km/hour) | C49: 32 | F49: Meter data | U49: Calibrated to match occupancy figures from meter data.
B50: Revenue at waiting time rate/revenue at dist. rate | C50: =H52/H53 -> 0.3820331681 | F50: Total km | H50: 5141146
B51: Minutes on waiting time rate (/trip) | C51: =((C44*C16)*C50/(C18+C50*C48*C16))*60 -> 5.208266047 | F51: Occupied km | H51: 2577606 | U51: Calculation of waiting time minutes based on meter data showing waiting revenue against distance revenue.
B52: Kms on distance rate (/trip) | C52: =C44-C51/60*C48 -> 5.871542356 | F52: Revenue at time rate ($2011/12) | H52: 1990899
B53: Multiplier for occupied to total kms for a trip | C53: =H50/H51 -> 1.994542998 | F53: Revenue at distance rate ($2010/11) | H53: 5211325 | U53: Based on meter data records provided by the Australian Taxi Drive Association. Measures total kilometres versus occupied kms.
B54: Value of time ($/hour) | C54: 30 | U54: Standard values of time used in economic appraisals are lower (around $15). However, taxi users are likely to have a higher value of time.
B55: Share of cabs at which constraint on number of cabs becomes binding | C55: 0.76 | U55: Key assumption - based on share of trips at which revenue per cab begins to increase and hence licence constraint becomes important.
B56: Increase in constraint for highest demand shift (%) | C56: 0.13
B57: Per cent of shifts to which higher constraint not applied | C57: 0.3
B58: Slope of the supply curve | C58: 45
B59: Standard deviation of expected shift revenue | C59: =12.5240326851699*2 -> 25.04806537
B60: Calibration constant to account for rising marginal costs | C60: =C58*3/4 -> 33.75 | U60: Required because we have average cost data, therefore need to reduce the fixed component so that fixed + variable = average
B61: Flat or upward sloping cost curve | C61: Upward sloping
B62: For calculation of peak licence value: | L62: DO NOT DELETE
B63: What revenue premium can peak licences obtain by working across best part of shifts? | C63: 0.085 | L63: Flat | U63: This is set to align the peak licence value to that observed.
B64: Of shifts available, what per cent do peak licences do (%) | C64: 0.9 | L64: Upward sloping
B66: Increase in demand per taxi 2012 | C66: 0
B69: For fare change calculations
B70: Fuel cost 2012/13 inc GST | C70: ='Inputs and assumptions'!C27*1.1*(1+'Inputs and assumptions'!C31) -> 0.1558068271 | D70: Source
B71: Night speed waiting rate | C71: 0 | D71: Assumption
B72: Night - Revenue at waiting time rate/revenue at dist. rate | C72: 0.1 | D72: Assumption
B73: Night Speed when on waiting time (km/hour) | C73: 45 | D73: Assumption

Sheet Base model
A2: CALIBRATION OF MODEL PARAMETERS
A3: Day | B3: Description | C3: Unit | J3: Monday | K3: Tuesday | L3: Wednesday | M3: Thursday | N3: Friday | O3: Saturday | P3: Sunday | Q3: Monday | R3: Tuesday | S3: Wednesday | T3: Thursday | U3: Friday | V3: Saturday | W3: Sunday
A4: Shift | J4: Day | K4: Day | L4: Day | M4: Day | N4: Day | O4: Day | P4: Day | Q4: Night | R4: Night | S4: Night | T4: Night | U4: Night | V4: Night | W4: Night
A5: Revenue adjustment for fare increases and demand | B5: Revenue adjustment for price increase from July 2012 | C5: Per cent | J5: =(1+'Inputs and assumptions'!$C$31)*(1+'Inputs and assumptions'!$C$66) -> 1.037 | K5: =(1+'Inputs and assumptions'!$C$31)*(1+'Inputs and assumptions'!$C$66) -> 1.037 | L5: =(1+'Inputs and assumptions'!$C$31)*(1+'Inputs and assumptions'!$C$66) -> 1.037 | M5: =(1+'Inputs and assumptions'!$C$31)*(1+'Inputs and assumptions'!$C$66) -> 1.037 | N5: =(1+'Inputs and assumptions'!$C$31)*(1+'Inputs and assumptions'!$C$66) -> 1.037 | O5: =(1+'Inputs and assumptions'!$C$31)*(1+'Inputs and assumptions'!$C$66) -> 1.037 | P5: =(1+'Inputs and assumptions'!$C$31)*(1+'Inputs and assumptions'!$C$66) -> 1.037 | Q5: =(1+'Inputs and assumptions'!$C$31)*(1+'Inputs and assumptions'!$C$66) -> 1.037 | R5: =(1+'Inputs and assumptions'!$C$31)*(1+'Inputs and assumptions'!$C$66) -> 1.037 | S5: =(1+'Inputs and assumptions'!$C$31)*(1+'Inputs and assumptions'!$C$66) -> 1.037 | T5: =(1+'Inputs and assumptions'!$C$31)*(1+'Inputs and assumptions'!$C$66) -> 1.037 | U5: =(1+'Inputs and assumptions'!$C$31)*(1+'Inputs and assumptions'!$C$66) -> 1.037 | V5: =(1+'Inputs and assumptions'!$C$31)*(1+'Inputs and assumptions'!$C$66) -> 1.037 | W5: =(1+'Inputs and assumptions'!$C$31)*(1+'Inputs and assumptions'!$C$66) -> 1.037 | X5: now multiplicate
A6: T_max | B6: The maximum number of taxis, based on the number of taxi plates | C6: No. | J6: ='Inputs and assumptions'!$C$39 -> 5361 | K6: ='Inputs and assumptions'!$C$39 -> 5361 | L6: ='Inputs and assumptions'!$C$39 -> 5361 | M6: ='Inputs and assumptions'!$C$39 -> 5361 | N6: ='Inputs and assumptions'!$C$39 -> 5361 | O6: ='Inputs and assumptions'!$C$39 -> 5361 | P6: ='Inputs and assumptions'!$C$39 -> 5361 | Q6: ='Inputs and assumptions'!$C$40 -> 5647 | R6: ='Inputs and assumptions'!$C$40 -> 5647 | S6: ='Inputs and assumptions'!$C$40 -> 5647 | T6: ='Inputs and assumptions'!$C$40 -> 5647 | U6: ='Inputs and assumptions'!$C$40 -> 5647 | V6: ='Inputs and assumptions'!$C$40 -> 5647 | W6: ='Inputs and assumptions'!$C$40 -> 5647 | X6: ok
A7: T_base | B7: The number of taxis actually on the road, based on network data | C7: No. | J7: ='Inputs and assumptions'!D8/100*J6 -> 4316.573488 | K7: ='Inputs and assumptions'!E8/100*K6 -> 4357.240144 | L7: ='Inputs and assumptions'!F8/100*L6 -> 4402.540609 | M7: ='Inputs and assumptions'!G8/100*M6 -> 4590.38494 | N7: ='Inputs and assumptions'!H8/100*N6 -> 4411.080696 | O7: ='Inputs and assumptions'!I8/100*O6 -> 3203.029684 | P7: ='Inputs and assumptions'!J8/100*P6 -> 2890.812023 | Q7: ='Inputs and assumptions'!K8/100*Q6 -> 3687.34022 | R7: ='Inputs and assumptions'!L8/100*R6 -> 4123.861473 | S7: ='Inputs and assumptions'!M8/100*S6 -> 4319.052103 | T7: ='Inputs and assumptions'!N8/100*T6 -> 4593.89353 | U7: ='Inputs and assumptions'!O8/100*U6 -> 4965.564312 | V7: ='Inputs and assumptions'!P8/100*V6 -> 4656.322695 | W7: ='Inputs and assumptions'!Q8/100*W6 -> 3023.100848 | X7: ok
A8: T_max_effective | B8: The maximum effective number of taxis on the road | C8: No. | J8: =('Inputs and assumptions'!$C$55+MAX('Inputs and assumptions'!D8-PERCENTILE('Inputs and assumptions'!$D$8:$Q$8,'Inputs and assumptions'!$C$57),0)/(MAX('Inputs and assumptions'!$D$8:$Q$8)-PERCENTILE('Inputs and assumptions'!$D$8:$Q$8,'Inputs and assumptions'!$C$57))*'Inputs and assumptions'!$C$56)*J6 -> 4441.692285 | K8: =('Inputs and assumptions'!$C$55+MAX('Inputs and assumptions'!E8-PERCENTILE('Inputs and assumptions'!$D$8:$Q$8,'Inputs and assumptions'!$C$57),0)/(MAX('Inputs and assumptions'!$D$8:$Q$8)-PERCENTILE('Inputs and assumptions'!$D$8:$Q$8,'Inputs and assumptions'!$C$57))*'Inputs and assumptions'!$C$56)*K6 -> 4475.411867 | L8: =('Inputs and assumptions'!$C$55+MAX('Inputs and assumptions'!F8-PERCENTILE('Inputs and assumptions'!$D$8:$Q$8,'Inputs and assumptions'!$C$57),0)/(MAX('Inputs and assumptions'!$D$8:$Q$8)-PERCENTILE('Inputs and assumptions'!$D$8:$Q$8,'Inputs and assumptions'!$C$57))*'Inputs and assumptions'!$C$56)*L6 -> 4512.973665 | M8: =('Inputs and assumptions'!$C$55+MAX('Inputs and assumptions'!G8-PERCENTILE('Inputs and assumptions'!$D$8:$Q$8,'Inputs and assumptions'!$C$57),0)/(MAX('Inputs and assumptions'!$D$8:$Q$8)-PERCENTILE('Inputs and assumptions'!$D$8:$Q$8,'Inputs and assumptions'!$C$57))*'Inputs and assumptions'!$C$56)*M6 -> 4668.728596 | N8: =('Inputs and assumptions'!$C$55+MAX('Inputs and assumptions'!H8-PERCENTILE('Inputs and assumptions'!$D$8:$Q$8,'Inputs and assumptions'!$C$57),0)/(MAX('Inputs and assumptions'!$D$8:$Q$8)-PERCENTILE('Inputs and assumptions'!$D$8:$Q$8,'Inputs and assumptions'!$C$57))*'Inputs and assumptions'!$C$56)*N6 -> 4520.054851 | O8: =('Inputs and assumptions'!$C$55+MAX('Inputs and assumptions'!I8-PERCENTILE('Inputs and assumptions'!$D$8:$Q$8,'Inputs and assumptions'!$C$57),0)/(MAX('Inputs and assumptions'!$D$8:$Q$8)-PERCENTILE('Inputs and assumptions'!$D$8:$Q$8,'Inputs and assumptions'!$C$57))*'Inputs and assumptions'!$C$56)*O6 -> 4074.36 | P8: =('Inputs and assumptions'!$C$55+MAX('Inputs and assumptions'!J8-PERCENTILE('Inputs and assumptions'!$D$8:$Q$8,'Inputs and assumptions'!$C$57),0)/(MAX('Inputs and assumptions'!$D$8:$Q$8)-PERCENTILE('Inputs and assumptions'!$D$8:$Q$8,'Inputs and assumptions'!$C$57))*'Inputs and assumptions'!$C$56)*P6 -> 4074.36 | Q8: =('Inputs and assumptions'!$C$55+MAX('Inputs and assumptions'!K8-PERCENTILE('Inputs and assumptions'!$D$8:$Q$8,'Inputs and assumptions'!$C$57),0)/(MAX('Inputs and assumptions'!$D$8:$Q$8)-PERCENTILE('Inputs and assumptions'!$D$8:$Q$8,'Inputs and assumptions'!$C$57))*'Inputs and assumptions'!$C$56)*Q6 -> 4291.72 | R8: =('Inputs and assumptions'!$C$55+MAX('Inputs and assumptions'!L8-PERCENTILE('Inputs and assumptions'!$D$8:$Q$8,'Inputs and assumptions'!$C$57),0)/(MAX('Inputs and assumptions'!$D$8:$Q$8)-PERCENTILE('Inputs and assumptions'!$D$8:$Q$8,'Inputs and assumptions'!$C$57))*'Inputs and assumptions'!$C$56)*R6 -> 4327.915044 | S8: =('Inputs and assumptions'!$C$55+MAX('Inputs and assumptions'!M8-PERCENTILE('Inputs and assumptions'!$D$8:$Q$8,'Inputs and assumptions'!$C$57),0)/(MAX('Inputs and assumptions'!$D$8:$Q$8)-PERCENTILE('Inputs and assumptions'!$D$8:$Q$8,'Inputs and assumptions'!$C$57))*'Inputs and assumptions'!$C$56)*S6 -> 4489.761308 | T8: =('Inputs and assumptions'!$C$55+MAX('Inputs and assumptions'!N8-PERCENTILE('Inputs and assumptions'!$D$8:$Q$8,'Inputs and assumptions'!$C$57),0)/(MAX('Inputs and assumptions'!$D$8:$Q$8)-PERCENTILE('Inputs and assumptions'!$D$8:$Q$8,'Inputs and assumptions'!$C$57))*'Inputs and assumptions'!$C$56)*T6 -> 4717.651643 | U8: =('Inputs and assumptions'!$C$55+MAX('Inputs and assumptions'!O8-PERCENTILE('Inputs and assumptions'!$D$8:$Q$8,'Inputs and assumptions'!$C$57),0)/(MAX('Inputs and assumptions'!$D$8:$Q$8)-PERCENTILE('Inputs and assumptions'!$D$8:$Q$8,'Inputs and assumptions'!$C$57))*'Inputs and assumptions'!$C$56)*U6 -> 5025.83 | V8: =('Inputs and assumptions'!$C$55+MAX('Inputs and assumptions'!P8-PERCENTILE('Inputs and assumptions'!$D$8:$Q$8,'Inputs and assumptions'!$C$57),0)/(MAX('Inputs and assumptions'!$D$8:$Q$8)-PERCENTILE('Inputs and assumptions'!$D$8:$Q$8,'Inputs and assumptions'!$C$57))*'Inputs and assumptions'!$C$56)*V6 -> 4769.41605 | W8: =('Inputs and assumptions'!$C$55+MAX('Inputs and assumptions'!Q8-PERCENTILE('Inputs and assumptions'!$D$8:$Q$8,'Inputs and assumptions'!$C$57),0)/(MAX('Inputs and assumptions'!$D$8:$Q$8)-PERCENTILE('Inputs and assumptions'!$D$8:$Q$8,'Inputs and assumptions'!$C$57))*'Inputs and assumptions'!$C$56)*W6 -> 4291.72 | X8: =('Inputs and assumptions'!$C$55+MAX('Inputs and assumptions'!R8-PERCENTILE('Inputs and assumptions'!$D$8:$Q$8,'Inputs and assumptions'!$C$57),0)/(MAX('Inputs and assumptions'!$D$8:$Q$8)-PERCENTILE('Inputs and assumptions'!$D$8:$Q$8,'Inputs and assumptions'!$C$57))*'Inputs and assumptions'!$C$56)*X6 -> 
A9: Q_base | B9: Baseline quantity of taxis demanded per shift | C9: Kms occupied | J9: =J7*'Inputs and assumptions'!D7/J13/$B$20*J5 -> 382718.9454 | K9: =K7*'Inputs and assumptions'!E7/K13/$B$20*K5 -> 380027.3817 | L9: =L7*'Inputs and assumptions'!F7/L13/$B$20*L5 -> 390784.9258 | M9: =M7*'Inputs and assumptions'!G7/M13/$B$20*M5 -> 414401.3346 | N9: =N7*'Inputs and assumptions'!H7/N13/$B$20*N5 -> 419415.022 | O9: =O7*'Inputs and assumptions'!I7/O13/$B$20*O5 -> 297338.1731 | P9: =P7*'Inputs and assumptions'!J7/P13/$B$20*P5 -> 271075.3871 | Q9: =Q7*'Inputs and assumptions'!K7/Q13/$B$20*Q5 -> 315327.6217 | R9: =R7*'Inputs and assumptions'!L7/R13/$B$20*R5 -> 385484.7998 | S9: =S7*'Inputs and assumptions'!M7/S13/$B$20*S5 -> 441250.4054 | T9: =T7*'Inputs and assumptions'!N7/T13/$B$20*T5 -> 517734.0189 | U9: =U7*'Inputs and assumptions'!O7/U13/$B$20*U5 -> 682678.0371 | V9: =V7*'Inputs and assumptions'!P7/V13/$B$20*V5 -> 630901.6342 | W9: =W7*'Inputs and assumptions'!Q7/W13/$B$20*W5 -> 274600.9802 | X9: ok - see check below. Forumula simplified, GST adjustment no longer hard-coded
B10: Demand intercept with y axis | C10: Kms occupied | J10: =J9+J11*J13+'Inputs and assumptions'!D12*J12 -> 750754.6418 | K10: =K9+K11*K13+'Inputs and assumptions'!E12*K12 -> 745474.7778 | L10: =L9+L11*L13+'Inputs and assumptions'!F12*L12 -> 766577.1462 | M10: =M9+M11*M13+'Inputs and assumptions'!G12*M12 -> 812903.9058 | N10: =N9+N11*N13+'Inputs and assumptions'!H12*N12 -> 821005.5818 | O10: =O9+O11*O13+'Inputs and assumptions'!I12*O12 -> 582039.9533 | P10: =P9+P11*P13+'Inputs and assumptions'!J12*P12 -> 530527.6125 | Q10: =Q9+Q11*Q13+'Inputs and assumptions'!K12*Q12 -> 612163.2256 | R10: =R9+R11*R13+'Inputs and assumptions'!L12*R12 -> 748363.2967 | S10: =S9+S11*S13+'Inputs and assumptions'!M12*S12 -> 856624.1995 | T10: =T9+T11*T13+'Inputs and assumptions'!N12*T12 -> 1005106.135 | U10: =U9+U11*U13+'Inputs and assumptions'!O12*U12 -> 1351981.545 | V10: =V9+V11*V13+'Inputs and assumptions'!P12*V12 -> 1246928.967 | W10: =W9+W11*W13+'Inputs and assumptions'!Q12*W12 -> 549010.5928 | X10: ok
B11: Impact of price on demand kilometres | C11: Change in Q per extra dollar | J11: ='Inputs and assumptions'!D$5*J9/J13 -> 109156.5769 | K11: ='Inputs and assumptions'!E$5*K9/K13 -> 108388.9069 | L11: ='Inputs and assumptions'!F$5*L9/L13 -> 111457.1027 | M11: ='Inputs and assumptions'!G$5*M9/M13 -> 118192.8193 | N11: ='Inputs and assumptions'!H$5*N9/N13 -> 119622.7902 | O11: ='Inputs and assumptions'!I$5*O9/O13 -> 84804.83541 | P11: ='Inputs and assumptions'!J$5*P9/P13 -> 77314.33654 | Q11: ='Inputs and assumptions'!K$5*Q9/Q13 -> 88385.83826 | R11: ='Inputs and assumptions'!L$5*R9/R13 -> 108050.7854 | S11: ='Inputs and assumptions'!M$5*S9/S13 -> 123681.7972 | T11: ='Inputs and assumptions'!N$5*T9/T13 -> 145120.0343 | U11: ='Inputs and assumptions'!O$5*U9/U13 -> 188111.9187 | V11: ='Inputs and assumptions'!P$5*V9/V13 -> 170004.9267 | W11: ='Inputs and assumptions'!Q$5*W9/W13 -> 76970.22446 | X11: ok
B12: Impact of waiting time on demand kilometres | C12: Change in Q per extra minute | J12: =('Inputs and assumptions'!$C$54/'Inputs and assumptions'!$C$44)/60*J11 -> 7796.898352 | K12: =('Inputs and assumptions'!$C$54/'Inputs and assumptions'!$C$44)/60*K11 -> 7742.064775 | L12: =('Inputs and assumptions'!$C$54/'Inputs and assumptions'!$C$44)/60*L11 -> 7961.221624 | M12: =('Inputs and assumptions'!$C$54/'Inputs and assumptions'!$C$44)/60*M11 -> 8442.344237 | N12: =('Inputs and assumptions'!$C$54/'Inputs and assumptions'!$C$44)/60*N11 -> 8544.485015 | O12: =('Inputs and assumptions'!$C$54/'Inputs and assumptions'!$C$44)/60*O11 -> 6057.488243 | P12: =('Inputs and assumptions'!$C$54/'Inputs and assumptions'!$C$44)/60*P11 -> 5522.45261 | Q12: =('Inputs and assumptions'!$C$54/'Inputs and assumptions'!$C$44)/60*Q11 -> 6313.274161 | R12: =('Inputs and assumptions'!$C$54/'Inputs and assumptions'!$C$44)/60*R11 -> 7717.91324 | S12: =('Inputs and assumptions'!$C$54/'Inputs and assumptions'!$C$44)/60*S11 -> 8834.414088 | T12: =('Inputs and assumptions'!$C$54/'Inputs and assumptions'!$C$44)/60*T11 -> 10365.71673 | U12: =('Inputs and assumptions'!$C$54/'Inputs and assumptions'!$C$44)/60*U11 -> 13436.56562 | V12: =('Inputs and assumptions'!$C$54/'Inputs and assumptions'!$C$44)/60*V11 -> 12143.20905 | W12: =('Inputs and assumptions'!$C$54/'Inputs and assumptions'!$C$44)/60*W11 -> 5497.873176 | X12: ok
A13: P | B13: Price per kilometre of demand (excluding GST) | C13: $/km occupied | J13: =(('Inputs and assumptions'!$C$15+'Inputs and assumptions'!$C$47*'Inputs and assumptions'!$C$19)/'Inputs and assumptions'!$C$44+('Inputs and assumptions'!$C$16*'Inputs and assumptions'!D9+'Inputs and assumptions'!$C$17*(1-'Inputs and assumptions'!D9))*'Inputs and assumptions'!$C$52/'Inputs and assumptions'!$C$44+('Inputs and assumptions'!$C$51/60*'Inputs and assumptions'!$C$18)/'Inputs and assumptions'!$C$44)/$B$20 -> 2.804917165 | K13: =(('Inputs and assumptions'!$C$15+'Inputs and assumptions'!$C$47*'Inputs and assumptions'!$C$19)/'Inputs and assumptions'!$C$44+('Inputs and assumptions'!$C$16*'Inputs and assumptions'!E9+'Inputs and assumptions'!$C$17*(1-'Inputs and assumptions'!E9))*'Inputs and assumptions'!$C$52/'Inputs and assumptions'!$C$44+('Inputs and assumptions'!$C$51/60*'Inputs and assumptions'!$C$18)/'Inputs and assumptions'!$C$44)/$B$20 -> 2.804917165 | L13: =(('Inputs and assumptions'!$C$15+'Inputs and assumptions'!$C$47*'Inputs and assumptions'!$C$19)/'Inputs and assumptions'!$C$44+('Inputs and assumptions'!$C$16*'Inputs and assumptions'!F9+'Inputs and assumptions'!$C$17*(1-'Inputs and assumptions'!F9))*'Inputs and assumptions'!$C$52/'Inputs and assumptions'!$C$44+('Inputs and assumptions'!$C$51/60*'Inputs and assumptions'!$C$18)/'Inputs and assumptions'!$C$44)/$B$20 -> 2.804917165 | M13: =(('Inputs and assumptions'!$C$15+'Inputs and assumptions'!$C$47*'Inputs and assumptions'!$C$19)/'Inputs and assumptions'!$C$44+('Inputs and assumptions'!$C$16*'Inputs and assumptions'!G9+'Inputs and assumptions'!$C$17*(1-'Inputs and assumptions'!G9))*'Inputs and assumptions'!$C$52/'Inputs and assumptions'!$C$44+('Inputs and assumptions'!$C$51/60*'Inputs and assumptions'!$C$18)/'Inputs and assumptions'!$C$44)/$B$20 -> 2.804917165 | N13: =(('Inputs and assumptions'!$C$15+'Inputs and assumptions'!$C$47*'Inputs and assumptions'!$C$19)/'Inputs and assumptions'!$C$44+('Inputs and assumptions'!$C$16*'Inputs and assumptions'!H9+'Inputs and assumptions'!$C$17*(1-'Inputs and assumptions'!H9))*'Inputs and assumptions'!$C$52/'Inputs and assumptions'!$C$44+('Inputs and assumptions'!$C$51/60*'Inputs and assumptions'!$C$18)/'Inputs and assumptions'!$C$44)/$B$20 -> 2.804917165 | O13: =(('Inputs and assumptions'!$C$15+'Inputs and assumptions'!$C$47*'Inputs and assumptions'!$C$19)/'Inputs and assumptions'!$C$44+('Inputs and assumptions'!$C$16*'Inputs and assumptions'!I9+'Inputs and assumptions'!$C$17*(1-'Inputs and assumptions'!I9))*'Inputs and assumptions'!$C$52/'Inputs and assumptions'!$C$44+('Inputs and assumptions'!$C$51/60*'Inputs and assumptions'!$C$18)/'Inputs and assumptions'!$C$44)/$B$20 -> 2.804917165 | P13: =(('Inputs and assumptions'!$C$15+'Inputs and assumptions'!$C$47*'Inputs and assumptions'!$C$19)/'Inputs and assumptions'!$C$44+('Inputs and assumptions'!$C$16*'Inputs and assumptions'!J9+'Inputs and assumptions'!$C$17*(1-'Inputs and assumptions'!J9))*'Inputs and assumptions'!$C$52/'Inputs and assumptions'!$C$44+('Inputs and assumptions'!$C$51/60*'Inputs and assumptions'!$C$18)/'Inputs and assumptions'!$C$44)/$B$20 -> 2.804917165 | Q13: =(('Inputs and assumptions'!$C$15+'Inputs and assumptions'!$C$47*'Inputs and assumptions'!$C$19)/'Inputs and assumptions'!$C$44+('Inputs and assumptions'!$C$16*'Inputs and assumptions'!K9+'Inputs and assumptions'!$C$17*(1-'Inputs and assumptions'!K9))*'Inputs and assumptions'!$C$52/'Inputs and assumptions'!$C$44+('Inputs and assumptions'!$C$51/60*'Inputs and assumptions'!$C$18)/'Inputs and assumptions'!$C$44)/$B$20 -> 2.854100864 | R13: =(('Inputs and assumptions'!$C$15+'Inputs and assumptions'!$C$47*'Inputs and assumptions'!$C$19)/'Inputs and assumptions'!$C$44+('Inputs and assumptions'!$C$16*'Inputs and assumptions'!L9+'Inputs and assumptions'!$C$17*(1-'Inputs and assumptions'!L9))*'Inputs and assumptions'!$C$52/'Inputs and assumptions'!$C$44+('Inputs and assumptions'!$C$51/60*'Inputs and assumptions'!$C$18)/'Inputs and assumptions'!$C$44)/$B$20 -> 2.854100864 | S13: =(('Inputs and assumptions'!$C$15+'Inputs and assumptions'!$C$47*'Inputs and assumptions'!$C$19)/'Inputs and assumptions'!$C$44+('Inputs and assumptions'!$C$16*'Inputs and assumptions'!M9+'Inputs and assumptions'!$C$17*(1-'Inputs and assumptions'!M9))*'Inputs and assumptions'!$C$52/'Inputs and assumptions'!$C$44+('Inputs and assumptions'!$C$51/60*'Inputs and assumptions'!$C$18)/'Inputs and assumptions'!$C$44)/$B$20 -> 2.854100864 | T13: =(('Inputs and assumptions'!$C$15+'Inputs and assumptions'!$C$47*'Inputs and assumptions'!$C$19)/'Inputs and assumptions'!$C$44+('Inputs and assumptions'!$C$16*'Inputs and assumptions'!N9+'Inputs and assumptions'!$C$17*(1-'Inputs and assumptions'!N9))*'Inputs and assumptions'!$C$52/'Inputs and assumptions'!$C$44+('Inputs and assumptions'!$C$51/60*'Inputs and assumptions'!$C$18)/'Inputs and assumptions'!$C$44)/$B$20 -> 2.854100864 | U13: =(('Inputs and assumptions'!$C$15+'Inputs and assumptions'!$C$47*'Inputs and assumptions'!$C$19)/'Inputs and assumptions'!$C$44+('Inputs and assumptions'!$C$16*'Inputs and assumptions'!O9+'Inputs and assumptions'!$C$17*(1-'Inputs and assumptions'!O9))*'Inputs and assumptions'!$C$52/'Inputs and assumptions'!$C$44+('Inputs and assumptions'!$C$51/60*'Inputs and assumptions'!$C$18)/'Inputs and assumptions'!$C$44)/$B$20 -> 2.903284563 | V13: =(('Inputs and assumptions'!$C$15+'Inputs and assumptions'!$C$47*'Inputs and assumptions'!$C$19)/'Inputs and assumptions'!$C$44+('Inputs and assumptions'!$C$16*'Inputs and assumptions'!P9+'Inputs and assumptions'!$C$17*(1-'Inputs and assumptions'!P9))*'Inputs and assumptions'!$C$52/'Inputs and assumptions'!$C$44+('Inputs and assumptions'!$C$51/60*'Inputs and assumptions'!$C$18)/'Inputs and assumptions'!$C$44)/$B$20 -> 2.968862828 | W13: =(('Inputs and assumptions'!$C$15+'Inputs and assumptions'!$C$47*'Inputs and assumptions'!$C$19)/'Inputs and assumptions'!$C$44+('Inputs and assumptions'!$C$16*'Inputs and assumptions'!Q9+'Inputs and assumptions'!$C$17*(1-'Inputs and assumptions'!Q9))*'Inputs and assumptions'!$C$52/'Inputs and assumptions'!$C$44+('Inputs and assumptions'!$C$51/60*'Inputs and assumptions'!$C$18)/'Inputs and assumptions'!$C$44)/$B$20 -> 2.854100864 | X13: ok - see check below. Very long formula!! GST adjustment no longer hard-coded
A14: c | B14: Variable cost | C14: $/km occupied | J14: =('Inputs and assumptions'!C25+'Inputs and assumptions'!C27)*'Inputs and assumptions'!C53*(1+'Inputs and assumptions'!$C$31) -> 0.4828223323 | K14: =J14 -> 0.4828223323 | L14: =K14 -> 0.4828223323 | M14: 0.4828223323 | N14: 0.4828223323 | O14: 0.4828223323 | P14: 0.4828223323 | Q14: 0.4828223323 | R14: 0.4828223323 | S14: 0.4828223323 | T14: 0.4828223323 | U14: 0.4828223323 | V14: 0.4828223323 | W14: 0.4828223323 | X14: ok
B15: Fixed component of shift costs | C15: $/taxi/shift | J15: =(('Inputs and assumptions'!$C$23+IF('Inputs and assumptions'!D6="Yes",'Inputs and assumptions'!$C$24,0))*'Inputs and assumptions'!$C$43+'Inputs and assumptions'!$C$26/'Inputs and assumptions'!$C$46)*(1+'Inputs and assumptions'!$C$31)-IF('Inputs and assumptions'!$C$61="Flat",0,'Inputs and assumptions'!$C$60) -> 131.2335063 | K15: =(('Inputs and assumptions'!$C$23+IF('Inputs and assumptions'!E6="Yes",'Inputs and assumptions'!$C$24,0))*'Inputs and assumptions'!$C$43+'Inputs and assumptions'!$C$26/'Inputs and assumptions'!$C$46)*(1+'Inputs and assumptions'!$C$31)-IF('Inputs and assumptions'!$C$61="Flat",0,'Inputs and assumptions'!$C$60) -> 131.2335063 | L15: =(('Inputs and assumptions'!$C$23+IF('Inputs and assumptions'!F6="Yes",'Inputs and assumptions'!$C$24,0))*'Inputs and assumptions'!$C$43+'Inputs and assumptions'!$C$26/'Inputs and assumptions'!$C$46)*(1+'Inputs and assumptions'!$C$31)-IF('Inputs and assumptions'!$C$61="Flat",0,'Inputs and assumptions'!$C$60) -> 131.2335063 | M15: =(('Inputs and assumptions'!$C$23+IF('Inputs and assumptions'!G6="Yes",'Inputs and assumptions'!$C$24,0))*'Inputs and assumptions'!$C$43+'Inputs and assumptions'!$C$26/'Inputs and assumptions'!$C$46)*(1+'Inputs and assumptions'!$C$31)-IF('Inputs and assumptions'!$C$61="Flat",0,'Inputs and assumptions'!$C$60) -> 131.2335063 | N15: =(('Inputs and assumptions'!$C$23+IF('Inputs and assumptions'!H6="Yes",'Inputs and assumptions'!$C$24,0))*'Inputs and assumptions'!$C$43+'Inputs and assumptions'!$C$26/'Inputs and assumptions'!$C$46)*(1+'Inputs and assumptions'!$C$31)-IF('Inputs and assumptions'!$C$61="Flat",0,'Inputs and assumptions'!$C$60) -> 131.2335063 | O15: =(('Inputs and assumptions'!$C$23+IF('Inputs and assumptions'!I6="Yes",'Inputs and assumptions'!$C$24,0))*'Inputs and assumptions'!$C$43+'Inputs and assumptions'!$C$26/'Inputs and assumptions'!$C$46)*(1+'Inputs and assumptions'!$C$31)-IF('Inputs and assumptions'!$C$61="Flat",0,'Inputs and assumptions'!$C$60) -> 151.9735063 | P15: =(('Inputs and assumptions'!$C$23+IF('Inputs and assumptions'!J6="Yes",'Inputs and assumptions'!$C$24,0))*'Inputs and assumptions'!$C$43+'Inputs and assumptions'!$C$26/'Inputs and assumptions'!$C$46)*(1+'Inputs and assumptions'!$C$31)-IF('Inputs and assumptions'!$C$61="Flat",0,'Inputs and assumptions'!$C$60) -> 151.9735063 | Q15: =(('Inputs and assumptions'!$C$23+IF('Inputs and assumptions'!K6="Yes",'Inputs and assumptions'!$C$24,0))*'Inputs and assumptions'!$C$43+'Inputs and assumptions'!$C$28+'Inputs and assumptions'!$C$26/'Inputs and assumptions'!$C$46)*(1+'Inputs and assumptions'!$C$31)-IF('Inputs and assumptions'!$C$61="Flat",0,'Inputs and assumptions'!$C$60) -> 142.6405063 | R15: =(('Inputs and assumptions'!$C$23+IF('Inputs and assumptions'!L6="Yes",'Inputs and assumptions'!$C$24,0))*'Inputs and assumptions'!$C$43+'Inputs and assumptions'!$C$28+'Inputs and assumptions'!$C$26/'Inputs and assumptions'!$C$46)*(1+'Inputs and assumptions'!$C$31)-IF('Inputs and assumptions'!$C$61="Flat",0,'Inputs and assumptions'!$C$60) -> 142.6405063 | S15: =(('Inputs and assumptions'!$C$23+IF('Inputs and assumptions'!M6="Yes",'Inputs and assumptions'!$C$24,0))*'Inputs and assumptions'!$C$43+'Inputs and assumptions'!$C$28+'Inputs and assumptions'!$C$26/'Inputs and assumptions'!$C$46)*(1+'Inputs and assumptions'!$C$31)-IF('Inputs and assumptions'!$C$61="Flat",0,'Inputs and assumptions'!$C$60) -> 142.6405063 | T15: =(('Inputs and assumptions'!$C$23+IF('Inputs and assumptions'!N6="Yes",'Inputs and assumptions'!$C$24,0))*'Inputs and assumptions'!$C$43+'Inputs and assumptions'!$C$28+'Inputs and assumptions'!$C$26/'Inputs and assumptions'!$C$46)*(1+'Inputs and assumptions'!$C$31)-IF('Inputs and assumptions'!$C$61="Flat",0,'Inputs and assumptions'!$C$60) -> 142.6405063 | U15: =(('Inputs and assumptions'!$C$23+IF('Inputs and assumptions'!O6="Yes",'Inputs and assumptions'!$C$24,0))*'Inputs and assumptions'!$C$43+'Inputs and assumptions'!$C$28+'Inputs and assumptions'!$C$26/'Inputs and assumptions'!$C$46)*(1+'Inputs and assumptions'!$C$31)-IF('Inputs and assumptions'!$C$61="Flat",0,'Inputs and assumptions'!$C$60) -> 163.3805063 | V15: =(('Inputs and assumptions'!$C$23+IF('Inputs and assumptions'!P6="Yes",'Inputs and assumptions'!$C$24,0))*'Inputs and assumptions'!$C$43+'Inputs and assumptions'!$C$28+'Inputs and assumptions'!$C$26/'Inputs and assumptions'!$C$46)*(1+'Inputs and assumptions'!$C$31)-IF('Inputs and assumptions'!$C$61="Flat",0,'Inputs and assumptions'!$C$60) -> 163.3805063 | W15: =(('Inputs and assumptions'!$C$23+IF('Inputs and assumptions'!Q6="Yes",'Inputs and assumptions'!$C$24,0))*'Inputs and assumptions'!$C$43+'Inputs and assumptions'!$C$28+'Inputs and assumptions'!$C$26/'Inputs and assumptions'!$C$46)*(1+'Inputs and assumptions'!$C$31)-IF('Inputs and assumptions'!$C$61="Flat",0,'Inputs and assumptions'!$C$60) -> 163.3805063 | X15: ok - see check below. Very long formula!!
B16: Variable component of fixed costs | C16: $/additional taxi per shift | J16: =IF('Inputs and assumptions'!$C$61="Flat",0.0000000000000001,'Inputs and assumptions'!$C$58/5000) -> 0.009 | K16: =IF('Inputs and assumptions'!$C$61="Flat",0.0000000000000001,'Inputs and assumptions'!$C$58/5000) -> 0.009 | L16: =IF('Inputs and assumptions'!$C$61="Flat",0.0000000000000001,'Inputs and assumptions'!$C$58/5000) -> 0.009 | M16: =IF('Inputs and assumptions'!$C$61="Flat",0.0000000000000001,'Inputs and assumptions'!$C$58/5000) -> 0.009 | N16: =IF('Inputs and assumptions'!$C$61="Flat",0.0000000000000001,'Inputs and assumptions'!$C$58/5000) -> 0.009 | O16: =IF('Inputs and assumptions'!$C$61="Flat",0.0000000000000001,'Inputs and assumptions'!$C$58/5000) -> 0.009 | P16: =IF('Inputs and assumptions'!$C$61="Flat",0.0000000000000001,'Inputs and assumptions'!$C$58/5000) -> 0.009 | Q16: =IF('Inputs and assumptions'!$C$61="Flat",0.0000000000000001,'Inputs and assumptions'!$C$58/5000) -> 0.009 | R16: =IF('Inputs and assumptions'!$C$61="Flat",0.0000000000000001,'Inputs and assumptions'!$C$58/5000) -> 0.009 | S16: =IF('Inputs and assumptions'!$C$61="Flat",0.0000000000000001,'Inputs and assumptions'!$C$58/5000) -> 0.009 | T16: =IF('Inputs and assumptions'!$C$61="Flat",0.0000000000000001,'Inputs and assumptions'!$C$58/5000) -> 0.009 | U16: =IF('Inputs and assumptions'!$C$61="Flat",0.0000000000000001,'Inputs and assumptions'!$C$58/5000) -> 0.009 | V16: =IF('Inputs and assumptions'!$C$61="Flat",0.0000000000000001,'Inputs and assumptions'!$C$58/5000) -> 0.009 | W16: =IF('Inputs and assumptions'!$C$61="Flat",0.0000000000000001,'Inputs and assumptions'!$C$58/5000) -> 0.009 | X16: flat demand curve gives Div0 error
B17: Waiting time constant | C17: Unit | J17: ='Inputs and assumptions'!D12*(J7-J9*J18) -> 24758.6356 | K17: =J17 -> 24758.6356 | L17: =K17 -> 24758.6356 | M17: 24758.6356 | N17: 24758.6356 | O17: 24758.6356 | P17: 24758.6356 | Q17: 24758.6356 | R17: 24758.6356 | S17: 24758.6356 | T17: 24758.6356 | U17: 24758.6356 | V17: 24758.6356 | W17: 24758.6356 | X17: formula correct (as per Description, with estimated base waiting time). Uses waiting time for Monday day. Stricktly speaking, shouldn't it use a weighted average waiting time?
B18: Constant to link occupied taxi kms to occupied taxis | C18: Unit (inverse of km per shift) | J18: =1/'Inputs and assumptions'!C49/'Inputs and assumptions'!C43 -> 0.003125 | K18: =J18 -> 0.003125 | L18: =K18 -> 0.003125 | M18: 0.003125 | N18: 0.003125 | O18: 0.003125 | P18: 0.003125 | Q18: 0.003125 | R18: 0.003125 | S18: 0.003125 | T18: 0.003125 | U18: 0.003125 | V18: 0.003125 | W18: 0.003125 | X18: assume this is correct - looks ok
J19: =RANK(J9,$J$9:$W$9,1) -> 6 | K19: 5 | L19: 8 | M19: 9 | N19: 10 | O19: 3 | P19: 1 | Q19: 4 | R19: 7 | S19: 11 | T19: 12 | U19: 14 | V19: 13 | W19: 2
A20: GST adjustor | B20: =(1+'Inputs and assumptions'!$C$20) -> 1.1
J108: Monday | K108: Tuesday | L108: Wednesday | M108: Thursday | N108: Friday | O108: Saturday | P108: Sunday | Q108: Monday | R108: Tuesday | S108: Wednesday | T108: Thursday | U108: Friday | V108: Saturday | W108: Sunday
A109: BASELINE MODEL | J109: Day | K109: Day | L109: Day | M109: Day | N109: Day | O109: Day | P109: Day | Q109: Night | R109: Night | S109: Night | T109: Night | U109: Night | V109: Night | W109: Night
A110: Q* | B110: Free entry demand | C110: Occupied kilometres | J110: 395471.8123 | K110: 392414.2662 | L110: 404633.1047 | M110: 431445.5335 | N110: 435247.7735 | O110: 289291.6604 | P110: 258960.6594 | Q110: 309893.8475 | R110: 388510.269 | S110: 450813.0687 | T110: 536138.8482 | U110: 744312.0595 | V110: 685087.8393 | W110: 275053.0247
A111: W* | B111: Free entry waiting time | C111: Minutes, average | J111: 6.298360062 | K111: 6.334047537 | L111: 6.194539382 | M111: 5.915099316 | N111: 5.878153051 | O111: 9.059490033 | P111: 9.906222348 | Q111: 7.920974049 | R111: 6.668277582 | S111: 5.977850475 | T111: 5.284735528 | U111: 4.57907605 | V111: 4.703848917 | W111: 9.872323745
A112: T* | B112: Free entry number of taxis on the road | C112: Taxis on the road | J112: 5166.815035 | K112: 5135.112042 | L112: 5261.326979 | M112: 5533.934223 | N112: 5572.124616 | O112: 3636.931504 | P112: 3308.553483 | Q112: 4094.124209 | R112: 4926.992756 | S112: 5550.519661 | T112: 6360.367607 | U112: 7732.881587 | V112: 7404.383942 | W112: 3367.423977
A113: Q* zero condition | B113: Zero condition to solve for free entry | C113: Occupied kilometres | J113: =J10-J11*J13-J12*J111-J110 -> -7.566995919e-09 | K113: 5.820766091e-10 | L113: -8.731149137e-10 | M113: 8.731149137e-10 | N113: -8.731149137e-10 | O113: 0 | P113: 6.4028427e-10 | Q113: 0 | R113: 0 | S113: 0 | T113: 0 | U113: 0 | V113: 0 | W113: 6.98491931e-10 | X113: ok
A114: W* zero condition | B114: Zero condition to solve for free entry | C114: Minutes, average | J114: =J17/(J112-J110*J18)-J111 -> -3.230551382e-07 | K114: -2.004529875e-11 | L114: -1.97717398e-11 | M114: -1.930988702e-11 | N114: -1.838262875e-11 | O114: -7.519318501e-12 | P114: -5.375255796e-12 | Q114: -7.549516567e-13 | R114: -5.784706048e-12 | S114: -8.372857963e-12 | T114: -1.000000083e-11 | U114: -4.956035582e-12 | V114: -1.26929578e-11 | W114: 4.268585485e-12 | X114: formula correct (as per Description) and check below
A115: T* zero condition | B115: Zero condition to solve for free entry | C115: Taxis on the road | J115: =(-J15+SQRT(J15^2+4*J16*(J13-J14)*J110))/(2*J16)-J112 -> -9.99238182e-07 | K115: 1.099579094e-09 | L115: 1.091393642e-09 | M115: 1.146872819e-09 | N115: 1.126863935e-09 | O115: 2.123670129e-10 | P115: 1.2187229e-10 | Q115: 2.273736754e-11 | R115: 2.792148734e-10 | S115: 4.674802767e-10 | T115: 6.730260793e-10 | U115: 3.337845556e-10 | V115: 9.476934792e-10 | W115: 0 | X115: formula correct (as per Description) and check below
A116: Qbar | B116: Fixed taxi numbers demand | C116: Occupied kilometres | J116: =((J18*(J10-J11*J13)+J118)-SQRT((J18*(J10-J11*J13)+J118)^2-4*J18*(J118*(J10-J11*J13)-J12*J17)))/(2*J18) -> 384974.1907 | K116: 382987.5585 | L116: 393892.7024 | M116: 419153.3805 | N116: 419548.9348 | O116: 296523.818 | P116: 271291.5817 | Q116: 312740.9078 | R116: 379178.126 | S116: 433832.6657 | T116: 508858.6187 | U116: 689919.1098 | V116: 634336.4952 | W116: 289154.1056 | X116: formula correct (as per Description) and check below
A117: Wbar | B117: Fixed taxi numbers waiting time | C117: Minutes, average | J117: =J17/(J118-J116*J18) -> 7.64474437 | K117: 7.551643614 | L117: 7.543629115 | M117: 7.371111129 | N117: 7.715459657 | O117: 7.86556983 | P117: 7.673351698 | Q117: 7.470009887 | R117: 7.877431234 | S117: 7.899925081 | T117: 7.916510084 | U117: 8.627204957 | V117: 8.88325025 | W117: 7.307499051 | X117: formula correct (as per Description) and check below
A118: Tbar | B118: Fixed taxi numbers | C118: Taxis on the road | J118: =J8 -> 4441.692285 | K118: 4475.411867 | L118: 4512.973665 | M118: 4668.728596 | N118: 4520.054851 | O118: 4074.36 | P118: 4074.36 | Q118: 4291.72 | R118: 4327.915044 | S118: 4489.761308 | T118: 4717.651643 | U118: 5025.83 | V118: 4769.41605 | W118: 4291.72 | X118: ok
A119: Q*_flat | B119: Free entry demand, flat cost curve | C119: Occupied kilometres | J119: =(J10-J11*J13+SQRT((J10-J11*J13)^2-4*J12*J17/((J13-J14)/J15-J18)))/2 -> 412455.4079 | K119: 409309.5538 | L119: 421880.9294 | M119: 449463.4568 | N119: 453452.1726 | O119: 303516.0118 | P119: 272365.8559 | Q119: 324183.3976 | R119: 405026.3049 | S119: 469081.7379 | T119: 556772.8045 | U119: 768824.0916 | V119: 707039.9052 | W119: 287800.9819 | X119: formula correct (as per Description) and check below
A120: W*_flat | B120: Free entry waiting time, flat cost curve | C120: Minutes, average | J120: =J17/((J13-J14)/J15-J18)/J119 -> 4.120109831 | K120: 4.151775997 | L120: 4.028059726 | M120: 3.780867065 | N120: 3.747609304 | O120: 6.711264036 | P120: 7.478823246 | Q120: 5.657560527 | R120: 4.528316238 | S120: 3.909952243 | T120: 3.29413933 | U120: 2.754797969 | V120: 2.89608411 | W120: 7.553616716 | X120: formula correct (as per Description) and check below
A121: T*_flat | B121: Free entry number of taxis on the road, flat cost curve | C121: Taxis on the road | J121: =(J13-J14)*J119/J15 -> 7298.140529 | K121: =(K13-K14)*K119/K15 -> 7242.476608 | L121: 7464.919239 | M121: 7952.974813 | N121: 8023.552646 | O121: 4637.604143 | P121: 4161.642129 | Q121: 5389.276515 | R121: 6733.221904 | S121: 7798.08964 | T121: 9255.87992 | U121: 11390.03494 | V121: 10758.50403 | W121: 4177.097409 | X121: formula correct (as per Description) and check below. But answer is correct only if 'flat' option is selected
A122: Q | B122: Equilibrium demand | C122: Occupied kilometres | J122: =IF(J124=J$118,J116,IF('Inputs and assumptions'!$C$61="Flat",J119,J110)) -> 384974.1907 | K122: =IF(K124=K$118,K116,IF('Inputs and assumptions'!$C$61="Flat",K119,K110)) -> 382987.5585 | L122: =IF(L124=L$118,L116,IF('Inputs and assumptions'!$C$61="Flat",L119,L110)) -> 393892.7024 | M122: =IF(M124=M$118,M116,IF('Inputs and assumptions'!$C$61="Flat",M119,M110)) -> 419153.3805 | N122: =IF(N124=N$118,N116,IF('Inputs and assumptions'!$C$61="Flat",N119,N110)) -> 419548.9348 | O122: =IF(O124=O$118,O116,IF('Inputs and assumptions'!$C$61="Flat",O119,O110)) -> 289291.6604 | P122: =IF(P124=P$118,P116,IF('Inputs and assumptions'!$C$61="Flat",P119,P110)) -> 258960.6594 | Q122: =IF(Q124=Q$118,Q116,IF('Inputs and assumptions'!$C$61="Flat",Q119,Q110)) -> 309893.8475 | R122: =IF(R124=R$118,R116,IF('Inputs and assumptions'!$C$61="Flat",R119,R110)) -> 379178.126 | S122: =IF(S124=S$118,S116,IF('Inputs and assumptions'!$C$61="Flat",S119,S110)) -> 433832.6657 | T122: =IF(T124=T$118,T116,IF('Inputs and assumptions'!$C$61="Flat",T119,T110)) -> 508858.6187 | U122: =IF(U124=U$118,U116,IF('Inputs and assumptions'!$C$61="Flat",U119,U110)) -> 689919.1098 | V122: =IF(V124=V$118,V116,IF('Inputs and assumptions'!$C$61="Flat",V119,V110)) -> 634336.4952 | W122: =IF(W124=W$118,W116,IF('Inputs and assumptions'!$C$61="Flat",W119,W110)) -> 275053.0247 | X122: ok
A123: W | B123: Equilibrium waiting time | C123: Minutes, average | J123: =IF(J124=J$118,J117,IF('Inputs and assumptions'!$C$61="Flat",J120,J111)) -> 7.64474437 | K123: =IF(K124=K$118,K117,IF('Inputs and assumptions'!$C$61="Flat",K120,K111)) -> 7.551643614 | L123: =IF(L124=L$118,L117,IF('Inputs and assumptions'!$C$61="Flat",L120,L111)) -> 7.543629115 | M123: =IF(M124=M$118,M117,IF('Inputs and assumptions'!$C$61="Flat",M120,M111)) -> 7.371111129 | N123: =IF(N124=N$118,N117,IF('Inputs and assumptions'!$C$61="Flat",N120,N111)) -> 7.715459657 | O123: =IF(O124=O$118,O117,IF('Inputs and assumptions'!$C$61="Flat",O120,O111)) -> 9.059490033 | P123: =IF(P124=P$118,P117,IF('Inputs and assumptions'!$C$61="Flat",P120,P111)) -> 9.906222348 | Q123: =IF(Q124=Q$118,Q117,IF('Inputs and assumptions'!$C$61="Flat",Q120,Q111)) -> 7.920974049 | R123: =IF(R124=R$118,R117,IF('Inputs and assumptions'!$C$61="Flat",R120,R111)) -> 7.877431234 | S123: =IF(S124=S$118,S117,IF('Inputs and assumptions'!$C$61="Flat",S120,S111)) -> 7.899925081 | T123: =IF(T124=T$118,T117,IF('Inputs and assumptions'!$C$61="Flat",T120,T111)) -> 7.916510084 | U123: =IF(U124=U$118,U117,IF('Inputs and assumptions'!$C$61="Flat",U120,U111)) -> 8.627204957 | V123: =IF(V124=V$118,V117,IF('Inputs and assumptions'!$C$61="Flat",V120,V111)) -> 8.88325025 | W123: =IF(W124=W$118,W117,IF('Inputs and assumptions'!$C$61="Flat",W120,W111)) -> 9.872323745 | X123: ok
A124: T | B124: Equilibrium number of taxis on the road | C124: Taxis on the road | J124: =IF('Inputs and assumptions'!$C$61="Flat",MIN(J121,J118),MIN(J112,J118)) -> 4441.692285 | K124: =IF('Inputs and assumptions'!$C$61="Flat",MIN(K121,K118),MIN(K112,K118)) -> 4475.411867 | L124: =IF('Inputs and assumptions'!$C$61="Flat",MIN(L121,L118),MIN(L112,L118)) -> 4512.973665 | M124: =IF('Inputs and assumptions'!$C$61="Flat",MIN(M121,M118),MIN(M112,M118)) -> 4668.728596 | N124: =IF('Inputs and assumptions'!$C$61="Flat",MIN(N121,N118),MIN(N112,N118)) -> 4520.054851 | O124: =IF('Inputs and assumptions'!$C$61="Flat",MIN(O121,O118),MIN(O112,O118)) -> 3636.931504 | P124: =IF('Inputs and assumptions'!$C$61="Flat",MIN(P121,P118),MIN(P112,P118)) -> 3308.553483 | Q124: =IF('Inputs and assumptions'!$C$61="Flat",MIN(Q121,Q118),MIN(Q112,Q118)) -> 4094.124209 | R124: =IF('Inputs and assumptions'!$C$61="Flat",MIN(R121,R118),MIN(R112,R118)) -> 4327.915044 | S124: =IF('Inputs and assumptions'!$C$61="Flat",MIN(S121,S118),MIN(S112,S118)) -> 4489.761308 | T124: =IF('Inputs and assumptions'!$C$61="Flat",MIN(T121,T118),MIN(T112,T118)) -> 4717.651643 | U124: =IF('Inputs and assumptions'!$C$61="Flat",MIN(U121,U118),MIN(U112,U118)) -> 5025.83 | V124: =IF('Inputs and assumptions'!$C$61="Flat",MIN(V121,V118),MIN(V112,V118)) -> 4769.41605 | W124: =IF('Inputs and assumptions'!$C$61="Flat",MIN(W121,W118),MIN(W112,W118)) -> 3367.423977 | X124: ok
A125: Difference between max effective and free entry (for info) | J125: =J112-J118 -> 725.1227491 | K125: =K112-K118 -> 659.7001745 | L125: 748.3533141 | M125: 865.2056271 | N125: 1052.069765 | O125: -437.4284962 | P125: -765.8065175 | Q125: -197.5957909 | R125: 599.0777127 | S125: 1060.758353 | T125: 1642.715963 | U125: 2707.051587 | V125: 2634.967892 | W125: -924.296023
A128: MODEL OUTPUTS
J129: Monday | K129: Tuesday | L129: Wednesday | M129: Thursday | N129: Friday | O129: Saturday | P129: Sunday | Q129: Monday | R129: Tuesday | S129: Wednesday | T129: Thursday | U129: Friday | V129: Saturday | W129: Sunday
J130: Day | K130: Day | L130: Day | M130: Day | N130: Day | O130: Day | P130: Day | Q130: Night | R130: Night | S130: Night | T130: Night | U130: Night | V130: Night | W130: Night
A131: Revenue per taxi (excluding GST) | J131: =J122*J13/J124 -> 243.1102035 | K131: =K122*K13/K124 -> 240.0334112 | L131: =L122*L13/L124 -> 244.8133945 | M131: 251.8224154 | N131: 260.3508248 | O131: 223.1109228 | P131: =P122*P13/P124 -> 219.5410177 | Q131: 216.033577 | R131: 250.0540343 | S131: 275.7835219 | T131: 307.85101 | U131: 398.5474043 | V131: 394.861346 | W131: 233.1245132 | X131: ok
A132: Cost per taxi | J132: =J15+J16*J124+J14*J122/J124 -> 213.0563312 | K132: =K15+K16*K124+K14*K122/K124 -> 212.830186 | L132: 213.9910411 | M132: 216.5993281 | N132: 216.7292958 | O132: 223.1109228 | P132: 219.5410177 | Q132: 216.033577 | R132: 223.8928649 | S132: 229.7020854 | T132: 237.1778889 | U132: 274.8922484 | V132: 270.5210422 | W132: =W15+W16*W124+W14*W122/W124 -> 233.1245132 | X132: ok
A133: Surplus per taxi for average shift | J133: =J131-J132 -> 30.05387236 | K133: 27.20322511 | L133: =L131-L132 -> 30.82235338 | M133: 35.22308729 | N133: 43.62152899 | O133: 1.270450412e-11 | P133: 7.730704965e-12 | Q133: 1.222133506e-12 | R133: 26.16116947 | S133: 46.08143651 | T133: 70.67312106 | U133: 123.655156 | V133: 124.3403038 | W133: =W131-W132 -> 0 | X133: ok
A134: Share of taxis on the road | J134: =J124/J6*100 -> 82.85193593 | K134: =K124/K6*100 -> 83.48091526 | L134: =L124/L6*100 -> 84.18156435 | M134: 87.08689789 | N134: 84.3136514 | O134: 67.84054288 | P134: 61.71523004 | Q134: 72.50087142 | R134: 76.64096058 | S134: 79.50701803 | T134: 83.54261809 | U134: 89 | V134: 84.45928901 | W134: 59.63208743 | X134: ok
A135: Free market taxis on the road as a proportion of maximum | J135: =J112/J118*100 -> 116.3253711 | K135: =K112/K118*100 -> 114.7405467 | L135: =L112/L118*100 -> 116.5822664 | M135: 118.5319324 | N135: 123.2755973 | O135: 89.26387221 | P135: 81.20425006 | Q135: 95.39588345 | R135: 113.8421782 | S135: 123.6261636 | T135: 134.8206287 | U135: 153.8627766 | V135: 155.2471805 | W135: 78.46327293 | X135: ok
A136: Average surplus accruing to shift (adjusted for distribution) | J136: =J133*J137+_xlfn.NORM.DIST(-1*(J135-100)/'Inputs and assumptions'!$C$59,0,1,FALSE)*'Inputs and assumptions'!$C$59/$C$137 -> 36.46116643 | K136: =K133*K137+_xlfn.NORM.DIST(-1*(K135-100)/'Inputs and assumptions'!$C$59,0,1,FALSE)*'Inputs and assumptions'!$C$59/$C$137 -> 34.34324948 | L136: =L133*L137+_xlfn.NORM.DIST(-1*(L135-100)/'Inputs and assumptions'!$C$59,0,1,FALSE)*'Inputs and assumptions'!$C$59/$C$137 -> 37.03863355 | M136: =M133*M137+_xlfn.NORM.DIST(-1*(M135-100)/'Inputs and assumptions'!$C$59,0,1,FALSE)*'Inputs and assumptions'!$C$59/$C$137 -> 40.4313673 | N136: =N133*N137+_xlfn.NORM.DIST(-1*(N135-100)/'Inputs and assumptions'!$C$59,0,1,FALSE)*'Inputs and assumptions'!$C$59/$C$137 -> 47.28206955 | O136: =O133*O137+_xlfn.NORM.DIST(-1*(O135-100)/'Inputs and assumptions'!$C$59,0,1,FALSE)*'Inputs and assumptions'!$C$59/$C$137 -> 15.95080653 | P136: =P133*P137+_xlfn.NORM.DIST(-1*(P135-100)/'Inputs and assumptions'!$C$59,0,1,FALSE)*'Inputs and assumptions'!$C$59/$C$137 -> 13.19485324 | Q136: =Q133*Q137+_xlfn.NORM.DIST(-1*(Q135-100)/'Inputs and assumptions'!$C$59,0,1,FALSE)*'Inputs and assumptions'!$C$59/$C$137 -> 17.19251477 | R136: =R133*R137+_xlfn.NORM.DIST(-1*(R135-100)/'Inputs and assumptions'!$C$59,0,1,FALSE)*'Inputs and assumptions'!$C$59/$C$137 -> 33.57692812 | S136: =S133*S137+_xlfn.NORM.DIST(-1*(S135-100)/'Inputs and assumptions'!$C$59,0,1,FALSE)*'Inputs and assumptions'!$C$59/$C$137 -> 49.32627296 | T136: =T133*T137+_xlfn.NORM.DIST(-1*(T135-100)/'Inputs and assumptions'!$C$59,0,1,FALSE)*'Inputs and assumptions'!$C$59/$C$137 -> 71.51412216 | U136: =U133*U137+_xlfn.NORM.DIST(-1*(U135-100)/'Inputs and assumptions'!$C$59,0,1,FALSE)*'Inputs and assumptions'!$C$59/$C$137 -> 123.438068 | V136: =V133*V137+_xlfn.NORM.DIST(-1*(V135-100)/'Inputs and assumptions'!$C$59,0,1,FALSE)*'Inputs and assumptions'!$C$59/$C$137 -> 124.1719094 | W136: =W133*W137+_xlfn.NORM.DIST(-1*(W135-100)/'Inputs and assumptions'!$C$59,0,1,FALSE)*'Inputs and assumptions'!$C$59/$C$137 -> 12.08210733 | X136: can't check
A137: Percentage of shifts where surplus accrues | C137: =STDEV(J135:W135)/STDEV(J133:W133) -> 0.5714894073 | J137: =(1-_xlfn.NORM.DIST(-1*(J135-100)/'Inputs and assumptions'!$C$59,0,1,TRUE)) -> 0.7427225622 | K137: =(1-_xlfn.NORM.DIST(-1*(K135-100)/'Inputs and assumptions'!$C$59,0,1,TRUE)) -> 0.7218984209 | L137: =(1-_xlfn.NORM.DIST(-1*(L135-100)/'Inputs and assumptions'!$C$59,0,1,TRUE)) -> 0.7460201088 | M137: =(1-_xlfn.NORM.DIST(-1*(M135-100)/'Inputs and assumptions'!$C$59,0,1,TRUE)) -> 0.7703059604 | N137: =(1-_xlfn.NORM.DIST(-1*(N135-100)/'Inputs and assumptions'!$C$59,0,1,TRUE)) -> 0.8236169464 | O137: =(1-_xlfn.NORM.DIST(-1*(O135-100)/'Inputs and assumptions'!$C$59,0,1,TRUE)) -> 0.3340995163 | P137: =(1-_xlfn.NORM.DIST(-1*(P135-100)/'Inputs and assumptions'!$C$59,0,1,TRUE)) -> 0.2265107412 | Q137: =(1-_xlfn.NORM.DIST(-1*(Q135-100)/'Inputs and assumptions'!$C$59,0,1,TRUE)) -> 0.4270807597 | R137: =(1-_xlfn.NORM.DIST(-1*(R135-100)/'Inputs and assumptions'!$C$59,0,1,TRUE)) -> 0.7097397682 | S137: =(1-_xlfn.NORM.DIST(-1*(S135-100)/'Inputs and assumptions'!$C$59,0,1,TRUE)) -> 0.8272191494 | T137: =(1-_xlfn.NORM.DIST(-1*(T135-100)/'Inputs and assumptions'!$C$59,0,1,TRUE)) -> 0.9177587011 | U137: =(1-_xlfn.NORM.DIST(-1*(U135-100)/'Inputs and assumptions'!$C$59,0,1,TRUE)) -> 0.9842372858 | V137: =(1-_xlfn.NORM.DIST(-1*(V135-100)/'Inputs and assumptions'!$C$59,0,1,TRUE)) -> 0.9862956236 | W137: =(1-_xlfn.NORM.DIST(-1*(W135-100)/'Inputs and assumptions'!$C$59,0,1,TRUE)) -> 0.1949452424 | X137: can't check
A138: Surplus (basic) | C138: $/taxi | J138: =SUMPRODUCT(J134:W134,J133:W133)*365/7/100 -> 24601.5424
A139: Surplus accounting for shift variation | C139: $/taxi | J139: =SUMPRODUCT(J134:W134,J136:W136)*365/7/100 -> 28323.94682
A140: Occupancy rate of taxis (time) | J140: =J122*J18/J124 -> 0.2708526995 | K140: =K122*K18/K124 -> 0.2674247993 | L140: 0.2727502499 | M140: 0.2805591045 | N140: 0.2900607325 | O140: 0.2485712029 | P140: 0.2445939184 | Q140: 0.2365385669 | R140: 0.2737881016 | S140: 0.3019597228 | T140: 0.3370709208 | U140: 0.4289833158 | V140: 0.415627726 | W140: 0.2552517022 | X140: ok - see check in previous version
A141: Revenue per taxi (including GST) | C141: =(U141-(U142*1.99)*'Inputs and assumptions'!C27)/10/60 -> 0.668482147 | J141: =J131*$B$20 -> 267.4212239 | K141: =K131*$B$20 -> 264.0367523 | L141: 269.2947339 | M141: 277.0046569 | N141: 286.3859073 | O141: 245.4220151 | P141: 241.4951194 | Q141: 237.6369348 | R141: 275.0594378 | S141: 303.3618741 | T141: 338.636111 | U141: 438.4021448 | V141: 434.3474806 | W141: 256.4369646 | X141: ok - GST no longer hard-coded
A142: Occupied kms per shift | J142: =J131/J13 -> 86.67286384 | K142: =K131/K13 -> 85.57593577 | L142: 87.28007997 | M142: 89.77891344 | N142: 92.8194344 | O142: 79.54278493 | P142: 78.27005389 | Q142: 75.69234142 | R142: 87.61219251 | S142: 96.62711131 | T142: 107.8626946 | U142: 137.2746611 | V142: 133.0008723 | W142: 81.68054471 | X142: ok - formula simplified
A144: MODEL VALIDATION
A146: Model validation | M146: Source/Notes
B147: Model | C147: Data | J147: Difference (per cent)
A148: Average occupancy | B148: =SUMPRODUCT(J140:W140,J134:W134)/SUM(J134:W134) -> 0.2984975214 | C148: 0.3 | J148: =B148/C148*100-100 -> -0.5008261971
A149: Kilometres per year | B149: ='Inputs and assumptions'!C53*B150 -> 108952.7 | C149: 107000 | J149: =B149/C149*100-100 -> 1.824953224 | M149: Average kilometres from CIE 2012 survey
A150: Occupied kilometres per taxi per year | B150: =SUMPRODUCT(J142:W142,J134:W134)/100*365/7 -> 54625.39541 | C150: NA
A151: Average revenue per taxi per year (excluding GST) | B151: =B152+B153 -> 159395.0213 | C151: =152556*(1+'Inputs and assumptions'!C31) -> 158200.572 | J151: =B151/C151*100-100 -> 0.7550221409 | M151: Average revenue from CIE 2012 survey, escalated by IPART 2012 price increase.
A152: Average cost per taxi per year (excluding plate lease costs) | B152: =SUMPRODUCT(J132:W132,J134:W134)/100*365/7 -> 131071.0745 | C152: =(C151)-C153 -> 130045.572 | J152: =B152/C152*100-100 -> 0.7885716594 | M152: From CIE survey, escalated by IPART 2012 price increase.
A153: Plate lease costs | B153: =J139 -> 28323.94682 | C153: 28155 | J153: =B153/C153*100-100 -> 0.6000597423
A154: ="Peak plate lease costs driving "&'Inputs and assumptions'!C64*100&"% of peak days" -> Peak plate lease costs driving 90% of peak days | B154: =(SUM($Q$136:$W$136)+'Inputs and assumptions'!$C$63*SUM('Base model'!$Q$131:$W$131))*365/7*'Inputs and assumptions'!$C$64-('Inputs and assumptions'!$C$30*(1-'Inputs and assumptions'!$C$64*365/'Inputs and assumptions'!$C$46)) -> 21398.96244 | C154: =26786.36/34651.92*C153 -> 21764.161 | J154: =B154/C154*100-100 -> -1.677981338
P195: 0 | Q195: 0 | R195: 0 | S195: 0 | T195: 0 | U195: 0 | V195: 0 | W195: 0 | X195: 0 | Y195: 0 | Z195: 0 | AA195: 0 | AB195: 0 | AC195: 0
P196: 0 | Q196: 0 | R196: 0 | S196: 0 | T196: 0 | U196: 0 | V196: 0 | W196: 0 | X196: 0 | Y196: 0 | Z196: 0 | AA196: 0 | AB196: 0 | AC196: 0
P197: 0 | Q197: 0 | R197: 0 | S197: 0 | T197: 0 | U197: 0 | V197: 0 | W197: 0 | X197: 0 | Y197: 0 | Z197: 0 | AA197: 0 | AB197: 0 | AC197: 0
P198: 0 | Q198: 0 | R198: 0 | S198: 0 | T198: 0 | U198: 0 | V198: 0 | W198: 0 | X198: 0 | Y198: 0 | Z198: 0 | AA198: 0 | AB198: 0 | AC198: 0
P199: 0 | Q199: 0 | R199: 0 | S199: 0 | T199: 0 | U199: 0 | V199: 0 | W199: 0 | X199: 0 | Y199: 0 | Z199: 0 | AA199: 0 | AB199: 0 | AC199: 0
P200: 0 | Q200: 0 | R200: 0 | S200: 0 | T200: 0 | U200: 0 | V200: 0 | W200: 0 | X200: 0 | Y200: 0 | Z200: 0 | AA200: 0 | AB200: 0 | AC200: 0

Sheet Sim_template
B4: step 1 | H4: step 2 | N4: step 3
B7: Number of licences | H7: Refine fares
L8: do not use this cell
B9: Change in unrestricted licences | E9: No. | H9: Actual average fare increase | K9: nominal | L9: =SUMPRODUCT(D151:Q155,Sim_template!D181:Q185)/C145*100-100 -> 1.397571344 | M9: %
B11: Change in peak availability licences | E11: No. | F11: 250 | L11: GST inclusive
H12: Flagfall | K12: $/trip | L12: =R36 -> 3.5
B13: Note: Do not include replacement licences here
H14: Standard kilometre charge | K14: $/km | L14: 2.14 | N14: Summary of model outputs
B15: Forecasts | R15: See outputs for each shift
H16: Waiting time | K16: $/hr | L16: =R40 -> 55.3
B17: Change in demand | E17: % | F17: 0.025 | K17: $/min | L17: =L16/60 -> 0.9216666667 | Q17: Difference | S17: 2013/14 | T17: 2012/13
I18: Charged when the taxi speed falls below (km/h) | L18: =L16/L14 -> 25.8411215
B19: CPI | E19: % | F19: 0.025 | N19: Plate lease costs | Q19: =S19/T19-1 -> -0.01541820286 | R19: $2012/13 (ex GST) | S19: =J62 -> 27887.24246 | T19: ='Base model'!B153 -> 28323.94682 | V19: ="Note: Nominal reduction is: "& ROUND((1+Q19/100)*(1+$F$19)*100-100,1) & "%" -> Note: Nominal reduction is: 2.5%
N20: Total trips | Q20: =S20/T20-1 -> 0.0375331863 | R20: 000,000 | S20: =SUM(J122:W122)*365/7/1000000/7 -> 44.67017731 | T20: =SUM('Base model'!J122:W122)*365/7/1000000/7 -> 43.05421542
B21: Real change in costs | E21: % | F21: 0 | H21: Booking fee | K21: ($/booking) | L21: =R41 -> 2.4 | N21: Average occupancy | Q21: =S21/T21-1 -> 0.01511699044 | R21: % | S21: =SUMPRODUCT(J63:W63,J57:W57)/SUM(J57:W57) -> 0.3030099056 | T21: ='Base model'!B148 -> 0.2984975214
N22: Average annual revenue per taxi | Q22: =S22/T22-1 -> 0.001505900516 | R22: $2012/13 (ex GST) | S22: =S25+S19 -> 159635.0544 | T22: ='Base model'!B151 -> 159395.0213
H23: Surcharges | N23: Average waiting time Fri and Sat nights | Q23: =S23/T23-1 -> -0.06351771436 | R23: mins | S23: =AVERAGE(U123:V123) -> 8.199115557 | T23: =AVERAGE('Base model'!U123:V123) -> 8.755227604
J24: Flag fall surcharge | L24: Distance surcharge
B25: Average fare change target | N25: Average cost per taxi per year (excluding plate lease costs) | Q25: =S25/T25-1 -> 0.005163133096 | R25: $2012/13 | S25: =SUMPRODUCT(J55:W55,J57:W57)/100*365/7 -> 131747.8119 | T25: ='Base model'!B152 -> 131071.0745
N26: Average waiting time | Q26: =S26/T26-1 -> -0.01460112936 | R26: mins | S26: =AVERAGE(J123:W123) -> 8.149946862 | T26: =AVERAGE('Base model'!J123:W123) -> 8.270708548
B27: Nominal fare increase sought | F27: 1.4 | G27: % | H27: Level | I27: $ per trip | J27: 2.5 | K27: % per km | L27: 0.2 | N27: Occupied kilometres per taxi per year | Q27: =S27/T27-1 -> 0.01367235624 | R27: km | S27: =SUMPRODUCT(J65:W65,J57:W57)/100*365/7 -> 55372.25328 | T27: ='Base model'!B150 -> 54625.39541 | V27: ="Note: Nominal reduction is: "& ROUND((1+Q28/100)*(1+$F$19)*100-100,1) & "%" -> Note: Nominal reduction is: 2.5%
N28: Peak plate costs | Q28: =S28/T28-1 -> -0.04796436787 | R28: $2012/13 (ex GST) | S28: =(SUM($Q$59:$W$59)+'Inputs and assumptions'!$C$63*SUM($Q$54:$W$54))*365/7*'Inputs and assumptions'!$C$64-('Inputs and assumptions'!$C$30*(1-'Inputs and assumptions'!$C$64*365/'Inputs and assumptions'!$C$46)) -> 20372.57473 | T28: ='Base model'!B154 -> 21398.96244
K29: =ROUND((L14*(1+L27)),2) -> 2.57 | L29: per kilometre | N29: Kilometres per year | Q29: =S29/T29-1 -> 0.01367235624 | R29: km | S29: ='Inputs and assumptions'!C53*S27 -> 110442.3401 | T29: ='Base model'!B149 -> 108952.7
H31: Hours of operation | J31: 10 pm until 6 am | L31: 10 pm until 6 am
H33: Shifts that it applies | N33: Fare schedule
H34: (only applies during the hours specified above) | Q34: Dfiference | R34: 2012/13 | S34: 2013/14
H35: Monday | I35: 3 am - 3 pm | J35: No | L35: Yes
H36: Tuesday | I36: 3 am - 3 pm | J36: No | L36: Yes | N36: Flagfall ($) | Q36: =L12/R36-1 -> 0 | R36: ='Inputs and assumptions'!C15 -> 3.5 | S36: =L12 -> 3.5
H37: Wednesday | I37: 3 am - 3 pm | J37: No | L37: Yes | N37: Flagfall surcharge ($) | S37: =J27 -> 2.5
H38: Thursday | I38: 3 am - 3 pm | J38: No | L38: Yes | N38: Standard kilometre charge ($/km) | Q38: =L14/R38-1 -> 0 | R38: ='Inputs and assumptions'!C16 -> 2.14 | S38: =L14 -> 2.14
H39: Friday | I39: 3 am - 3 pm | J39: No | L39: Yes | N39: Night kilometre charge ($/km) | Q39: =K29/R39-1 -> 0 | R39: ='Inputs and assumptions'!C17 -> 2.57 | S39: =K29 -> 2.57
H40: Saturday | I40: 3 am - 3 pm | J40: Yes | L40: Yes | N40: Waiting time ($/hour when vehicle slower than 26km/hour) | Q40: =L16/R40-1 -> 0 | R40: ='Inputs and assumptions'!C18 -> 55.3 | S40: =L16 -> 55.3
H41: Sunday | I41: 3 am - 3 pm | J41: Yes | L41: Yes | N41: Booking fee ($/booking) | Q41: =L21/R41-1 -> 0 | R41: ='Inputs and assumptions'!C19 -> 2.4 | S41: =L21 -> 2.4
H42: Monday | I42: 3 pm - 3 am | J42: No | L42: Yes
H43: Tuesday | I43: 3 pm - 3 am | J43: No | L43: Yes
H44: Wednesday | I44: 3 pm - 3 am | J44: No | L44: Yes
H45: Thursday | I45: 3 pm - 3 am | J45: No | L45: Yes
H46: Friday | I46: 3 pm - 3 am | J46: Yes | L46: Yes
H47: Saturday | I47: 3 pm - 3 am | J47: Yes | L47: Yes
H48: Sunday | I48: 3 pm - 3 am | J48: No | L48: Yes
B51: MODEL OUTPUTS FOR EACH SHIFT
J52: Monday | K52: Tuesday | L52: Wednesday | M52: Thursday | N52: Friday | O52: Saturday | P52: Sunday | Q52: Monday | R52: Tuesday | S52: Wednesday | T52: Thursday | U52: Friday | V52: Saturday | W52: Sunday
J53: Day | K53: Day | L53: Day | M53: Day | N53: Day | O53: Day | P53: Day | Q53: Night | R53: Night | S53: Night | T53: Night | U53: Night | V53: Night | W53: Night
B54: Revenue per taxi (excluding GST) | J54: =J122*J98/J124 -> 247.2269547 | K54: 244.1073638 | L54: 248.9530473 | M54: 256.0569902 | N54: 264.7146835 | O54: 224.4635505 | P54: 220.8453158 | Q54: 217.6906354 | R54: 245.7346773 | S54: 271.0118027 | T54: 302.5073019 | U54: 396.6195603 | V54: 394.8790749 | W54: 234.775847
B55: Cost per taxi | J55: =J100+J101*J124+J99*J122/J124 -> 214.8273089 | K55: 214.5803917 | L55: 215.7733781 | M55: 218.4285303 | N55: 218.6179546 | O55: 224.4635505 | P55: 220.8453158 | Q55: 217.6906354 | R55: 225.9226265 | S55: 231.8263785 | T55: 239.4290084 | U55: 275.321293 | V55: 269.9670777 | W55: 234.7758471
B56: Surplus per taxi | J56: =J54-J55 -> 32.3996458 | K56: 29.52697217 | L56: 33.17966925 | M56: 37.62845991 | N56: 46.09672883 | O56: -5.896157518e-08 | P56: -6.293893762e-08 | Q56: -5.238774747e-08 | R56: 19.81205083 | S56: 39.18542418 | T56: 63.07829351 | U56: 121.2982673 | V56: 124.9119972 | W56: =W54-W55 -> -6.582885703e-08
B57: Share of taxis on the road | H57: % | J57: =J124/('Base model'!J6+$F$9)*100 -> 82.85193593 | K57: =K124/('Base model'!K6+$F$9)*100 -> 83.48091526 | L57: =L124/('Base model'!L6+$F$9)*100 -> 84.18156435 | M57: =M124/('Base model'!M6+$F$9)*100 -> 87.08689789 | N57: =N124/('Base model'!N6+$F$9)*100 -> 84.3136514 | O57: =O124/('Base model'!O6+$F$9)*100 -> 69.10152348 | P57: =P124/('Base model'!P6+$F$9)*100 -> 62.91037064 | Q57: =Q124/('Base model'!Q6+$F$9+$F$11)*100 -> 70.29196446 | R57: =R124/('Base model'!R6+$F$9+$F$11)*100 -> 76.64096058 | S57: =S124/('Base model'!S6+$F$9+$F$11)*100 -> 79.50701803 | T57: =T124/('Base model'!T6+$F$9+$F$11)*100 -> 83.54261809 | U57: =U124/('Base model'!U6+$F$9+$F$11)*100 -> 89 | V57: =V124/('Base model'!V6+$F$9+$F$11)*100 -> 84.45928901 | W57: =W124/('Base model'!W6+$F$9+$F$11)*100 -> 57.82406025
B58: Free market taxis on the road as a proportion of maximum | H58: % | J58: =J112/J118*100 -> 117.5794355 | K58: 114.1302442 | L58: 117.8303943 | M58: 119.7770833 | N58: 124.5750209 | O58: 90.9230572 | P58: 82.77680348 | Q58: 92.48942693 | R58: 110.2721274 | S58: 119.6891085 | T58: 130.4605159 | U58: 151.4879995 | V58: 153.988819 | W58: 76.0842898
B59: Average surplus accruing to shift (adjusted for distribution) | J59: =J56*J60+_xlfn.NORM.DIST(-1*(J58-100)/'Inputs and assumptions'!$C$59,0,1,FALSE)*'Inputs and assumptions'!$C$59/$H$60 -> 38.24698455 | K59: =K56*K60+_xlfn.NORM.DIST(-1*(K58-100)/'Inputs and assumptions'!$C$59,0,1,FALSE)*'Inputs and assumptions'!$C$59/$H$60 -> 35.98561284 | L59: =L56*L60+_xlfn.NORM.DIST(-1*(L58-100)/'Inputs and assumptions'!$C$59,0,1,FALSE)*'Inputs and assumptions'!$C$59/$H$60 -> 38.84556415 | M59: =M56*M60+_xlfn.NORM.DIST(-1*(M58-100)/'Inputs and assumptions'!$C$59,0,1,FALSE)*'Inputs and assumptions'!$C$59/$H$60 -> 42.34520775 | N59: =N56*N60+_xlfn.NORM.DIST(-1*(N58-100)/'Inputs and assumptions'!$C$59,0,1,FALSE)*'Inputs and assumptions'!$C$59/$H$60 -> 49.37631017 | O59: =O56*O60+_xlfn.NORM.DIST(-1*(O58-100)/'Inputs and assumptions'!$C$59,0,1,FALSE)*'Inputs and assumptions'!$C$59/$H$60 -> 16.37420774 | P59: =P56*P60+_xlfn.NORM.DIST(-1*(P58-100)/'Inputs and assumptions'!$C$59,0,1,FALSE)*'Inputs and assumptions'!$C$59/$H$60 -> 13.80411148 | Q59: =Q56*Q60+_xlfn.NORM.DIST(-1*(Q58-100)/'Inputs and assumptions'!$C$59,0,1,FALSE)*'Inputs and assumptions'!$C$59/$H$60 -> 16.7167874 | R59: =R56*R60+_xlfn.NORM.DIST(-1*(R58-100)/'Inputs and assumptions'!$C$59,0,1,FALSE)*'Inputs and assumptions'!$C$59/$H$60 -> 29.13396687 | S59: =S56*S60+_xlfn.NORM.DIST(-1*(S58-100)/'Inputs and assumptions'!$C$59,0,1,FALSE)*'Inputs and assumptions'!$C$59/$H$60 -> 43.56281104 | T59: =T56*T60+_xlfn.NORM.DIST(-1*(T58-100)/'Inputs and assumptions'!$C$59,0,1,FALSE)*'Inputs and assumptions'!$C$59/$H$60 -> 64.36229928 | U59: =U56*U60+_xlfn.NORM.DIST(-1*(U58-100)/'Inputs and assumptions'!$C$59,0,1,FALSE)*'Inputs and assumptions'!$C$59/$H$60 -> 120.9971888 | V59: =V56*V60+_xlfn.NORM.DIST(-1*(V58-100)/'Inputs and assumptions'!$C$59,0,1,FALSE)*'Inputs and assumptions'!$C$59/$H$60 -> 124.6811407 | W59: =W56*W60+_xlfn.NORM.DIST(-1*(W58-100)/'Inputs and assumptions'!$C$59,0,1,FALSE)*'Inputs and assumptions'!$C$59/$H$60 -> 11.08455648
B60: Percentage of shifts where surplus accrues | H60: ='Base model'!C137 -> 0.5714894073 | J60: =(1-_xlfn.NORM.DIST(-1*(J58-100)/'Inputs and assumptions'!$C$59,0,1,TRUE)) -> 0.7586068055 | K60: =(1-_xlfn.NORM.DIST(-1*(K58-100)/'Inputs and assumptions'!$C$59,0,1,TRUE)) -> 0.7136655263 | L60: =(1-_xlfn.NORM.DIST(-1*(L58-100)/'Inputs and assumptions'!$C$59,0,1,TRUE)) -> 0.7617202888 | M60: =(1-_xlfn.NORM.DIST(-1*(M58-100)/'Inputs and assumptions'!$C$59,0,1,TRUE)) -> 0.785109161 | N60: =(1-_xlfn.NORM.DIST(-1*(N58-100)/'Inputs and assumptions'!$C$59,0,1,TRUE)) -> 0.8367318674 | O60: =(1-_xlfn.NORM.DIST(-1*(O58-100)/'Inputs and assumptions'!$C$59,0,1,TRUE)) -> 0.3585336706 | P60: =(1-_xlfn.NORM.DIST(-1*(P58-100)/'Inputs and assumptions'!$C$59,0,1,TRUE)) -> 0.2458505086 | Q60: =(1-_xlfn.NORM.DIST(-1*(Q58-100)/'Inputs and assumptions'!$C$59,0,1,TRUE)) -> 0.3821471474 | R60: =(1-_xlfn.NORM.DIST(-1*(R58-100)/'Inputs and assumptions'!$C$59,0,1,TRUE)) -> 0.65913247 | S60: =(1-_xlfn.NORM.DIST(-1*(S58-100)/'Inputs and assumptions'!$C$59,0,1,TRUE)) -> 0.7840817991 | T60: =(1-_xlfn.NORM.DIST(-1*(T58-100)/'Inputs and assumptions'!$C$59,0,1,TRUE)) -> 0.8880232666 | U60: =(1-_xlfn.NORM.DIST(-1*(U58-100)/'Inputs and assumptions'!$C$59,0,1,TRUE)) -> 0.9800879084 | V60: =(1-_xlfn.NORM.DIST(-1*(V58-100)/'Inputs and assumptions'!$C$59,0,1,TRUE)) -> 0.9844350684 | W60: =(1-_xlfn.NORM.DIST(-1*(W58-100)/'Inputs and assumptions'!$C$59,0,1,TRUE)) -> 0.1698412675
B61: Surplus (basic) | H61: $/taxi | J61: =SUMPRODUCT(J57:W57,J56:W56)*365/7/100 -> 24170.89377
B62: Surplus accounting for shift variation | H62: $/taxi | J62: =SUMPRODUCT(J57:W57,J59:W59)*365/7/100 -> 27887.24246
B63: Occupancy rate of taxis (time) | J63: =J122*J103/J124 -> 0.282315105 | K63: =K122*K103/K124 -> 0.2787527603 | L63: =L122*L103/L124 -> 0.2842861766 | M63: 0.2923983599 | N63: 0.3022848125 | O63: 0.2533880446 | P63: 0.2493035622 | Q63: 0.2442932437 | R63: 0.2757643723 | S63: 0.3041304567 | T63: 0.3394748235 | U63: 0.4187993461 | V63: 0.3997426228 | W63: 0.263466332
B64: Revenue per taxi (including GST) | J64: =J54*$D$105 -> 271.9496502 | K64: 268.5181002 | L64: 273.848352 | M64: 281.6626892 | N64: 291.1861518 | O64: 246.9099055 | P64: 242.9298473 | Q64: 239.4596989 | R64: 270.3081451 | S64: 298.1129829 | T64: 332.7580321 | U64: 436.2815164 | V64: 434.3669824 | W64: 258.2534317
B65: Occupied kms per shift | J65: =J54/J98 -> 90.34083359 | K65: 89.20088331 | L65: 90.9715765 | M65: 93.56747516 | N65: 96.73114001 | O65: 81.08417426 | P65: 79.7771399 | Q65: 78.17383799 | R65: 88.24459914 | S65: 97.32174615 | T65: 108.6319435 | U65: 134.0157908 | V65: 127.9176393 | W65: 84.30922625
B67: Difference in revenue per taxi per shift (nominal) | J67: =J64-'Base model'!J141 -> 4.528426266 | K67: =K64-'Base model'!K141 -> 4.481347953 | L67: =L64-'Base model'!L141 -> 4.553618116 | M67: =M64-'Base model'!M141 -> 4.658032312 | N67: =N64-'Base model'!N141 -> 4.80024453 | O67: =O64-'Base model'!O141 -> 1.487890424 | P67: =P64-'Base model'!P141 -> 1.43472792 | Q67: =Q64-'Base model'!Q141 -> 1.822764161 | R67: =R64-'Base model'!R141 -> -4.751292687 | S67: =S64-'Base model'!S141 -> -5.248891135 | T67: =T64-'Base model'!T141 -> -5.878078903 | U67: =U64-'Base model'!U141 -> -2.1206284 | V67: =V64-'Base model'!V141 -> 0.01950181744 | W67: =W64-'Base model'!W141 -> 1.816467166
B68: Difference in costs per taxi per shift (nominal) | J68: =J55-'Base model'!J132 -> 1.77097771 | K68: =K55-'Base model'!K132 -> 1.750205625 | L68: =L55-'Base model'!L132 -> 1.782336961 | M68: =M55-'Base model'!M132 -> 1.829202206 | N68: =N55-'Base model'!N132 -> 1.888658826 | O68: =O55-'Base model'!O132 -> 1.352627717 | P68: =P55-'Base model'!P132 -> 1.304298172 | Q68: =Q55-'Base model'!Q132 -> 1.65705838 | R68: =R55-'Base model'!R132 -> 2.02976166 | S68: =S55-'Base model'!S132 -> 2.12429312 | T68: =T55-'Base model'!T132 -> 2.251119448 | U68: =U55-'Base model'!U132 -> 0.4290446386 | V68: =V55-'Base model'!V132 -> -0.5539644367 | W68: =W55-'Base model'!W132 -> 1.651333853
B70: Difference in surplus per taxi (accruing to the licence owner) | J70: =J56-'Base model'!J133 -> 2.345773441 | K70: =K56-'Base model'!K133 -> 2.323747059 | L70: =L56-'Base model'!L133 -> 2.357315872 | M70: =M56-'Base model'!M133 -> 2.405372623 | N70: =N56-'Base model'!N133 -> 2.475199837 | O70: =O56-'Base model'!O133 -> -5.897427968e-08 | P70: =P56-'Base model'!P133 -> -6.294666832e-08 | Q70: =Q56-'Base model'!Q133 -> -5.238896961e-08 | R70: =R56-'Base model'!R133 -> -6.349118648 | S70: =S56-'Base model'!S133 -> -6.896012333 | T70: =T56-'Base model'!T133 -> -7.594827542 | U70: =U56-'Base model'!U133 -> -2.356888639 | V70: =V56-'Base model'!V133 -> 0.5716933616 | W70: =W56-'Base model'!W133 -> -6.582885703e-08
B71: Difference in the number of taxis on the road | J71: =J124-'Base model'!J124 -> 0 | K71: =K124-'Base model'!K124 -> 0 | L71: =L124-'Base model'!L124 -> 0 | M71: =M124-'Base model'!M124 -> 0 | N71: =N124-'Base model'!N124 -> 0 | O71: =O124-'Base model'!O124 -> 67.60116969 | P71: =P124-'Base model'!P124 -> 64.07148768 | Q71: =Q124-'Base model'!Q124 -> 50.9929353 | R71: =R124-'Base model'!R124 -> 191.6024014 | S71: =S124-'Base model'!S124 -> 198.7675451 | T71: =T124-'Base model'!T124 -> 208.8565452 | U71: =U124-'Base model'!U124 -> 222.5 | V71: =V124-'Base model'!V124 -> 211.1482225 | W71: =W124-'Base model'!W124 -> 42.46085589
W72: =W71/('Base model'!W6+$F$9+$F$11) -> 0.007200416465
B73: Additional taxis on the road | K73: Revenue per taxi
B91: CALIBRATION OF MODEL PARAMETERS
B92: Day | D92: Description | H92: Unit | J92: Monday | K92: Tuesday | L92: Wednesday | M92: Thursday | N92: Friday | O92: Saturday | P92: Sunday | Q92: Monday | R92: Tuesday | S92: Wednesday | T92: Thursday | U92: Friday | V92: Saturday | W92: Sunday
B93: Shift | J93: Day | K93: Day | L93: Day | M93: Day | N93: Day | O93: Day | P93: Day | Q93: Night | R93: Night | S93: Night | T93: Night | U93: Night | V93: Night | W93: Night
D95: Demand intercept with y axis | H95: Kms occupied | J95: ='Base model'!J10*(1+$F$17) -> 769523.5078 | K95: ='Base model'!K10*(1+$F$17) -> 764111.6473 | L95: ='Base model'!L10*(1+$F$17) -> 785741.5749 | M95: ='Base model'!M10*(1+$F$17) -> 833226.5034 | N95: ='Base model'!N10*(1+$F$17) -> 841530.7213 | O95: ='Base model'!O10*(1+$F$17) -> 596590.9521 | P95: ='Base model'!P10*(1+$F$17) -> 543790.8028 | Q95: ='Base model'!Q10*(1+$F$17) -> 627467.3062 | R95: ='Base model'!R10*(1+$F$17) -> 767072.3791 | S95: ='Base model'!S10*(1+$F$17) -> 878039.8044 | T95: ='Base model'!T10*(1+$F$17) -> 1030233.788 | U95: ='Base model'!U10*(1+$F$17) -> 1385781.084 | V95: ='Base model'!V10*(1+$F$17) -> 1278102.192 | W95: ='Base model'!W10*(1+$F$17) -> 562735.8576
D96: Impact of price on demand kilometres | H96: Change in Q per extra dollar | J96: ='Base model'!J11*(1+$F$17) -> 111885.4914 | K96: ='Base model'!K11*(1+$F$17) -> 111098.6295 | L96: ='Base model'!L11*(1+$F$17) -> 114243.5303 | M96: ='Base model'!M11*(1+$F$17) -> 121147.6398 | N96: ='Base model'!N11*(1+$F$17) -> 122613.36 | O96: ='Base model'!O11*(1+$F$17) -> 86924.95629 | P96: ='Base model'!P11*(1+$F$17) -> 79247.19495 | Q96: ='Base model'!Q11*(1+$F$17) -> 90595.48421 | R96: ='Base model'!R11*(1+$F$17) -> 110752.055 | S96: ='Base model'!S11*(1+$F$17) -> 126773.8422 | T96: ='Base model'!T11*(1+$F$17) -> 148748.0351 | U96: ='Base model'!U11*(1+$F$17) -> 192814.7167 | V96: ='Base model'!V11*(1+$F$17) -> 174255.0498 | W96: ='Base model'!W11*(1+$F$17) -> 78894.48008
D97: Impact of waiting time on demand kilometres | H97: Change in Q per extra minute | J97: ='Base model'!J12*(1+$F$17) -> 7991.820811 | K97: ='Base model'!K12*(1+$F$17) -> 7935.616395 | L97: ='Base model'!L12*(1+$F$17) -> 8160.252165 | M97: ='Base model'!M12*(1+$F$17) -> 8653.402843 | N97: ='Base model'!N12*(1+$F$17) -> 8758.097141 | O97: ='Base model'!O12*(1+$F$17) -> 6208.925449 | P97: ='Base model'!P12*(1+$F$17) -> 5660.513925 | Q97: ='Base model'!Q12*(1+$F$17) -> 6471.106015 | R97: ='Base model'!R12*(1+$F$17) -> 7910.861071 | S97: ='Base model'!S12*(1+$F$17) -> 9055.27444 | T97: ='Base model'!T12*(1+$F$17) -> 10624.85965 | U97: ='Base model'!U12*(1+$F$17) -> 13772.47976 | V97: ='Base model'!V12*(1+$F$17) -> 12446.78927 | W97: ='Base model'!W12*(1+$F$17) -> 5635.320005
B98: P | D98: Price per kilometre of demand (excluding GST) | H98: $/km occupied (real 2012/13) | J98: =SUMPRODUCT(Sim_template!D151:D155,Sim_template!D181:D185)/Sim_template!D164/'Base model'!$B$20/(1+$F$19) -> 2.73660254 | K98: =SUMPRODUCT(Sim_template!E151:E155,Sim_template!E181:E185)/Sim_template!E164/'Base model'!$B$20/(1+$F$19) -> 2.73660254 | L98: =SUMPRODUCT(Sim_template!F151:F155,Sim_template!F181:F185)/Sim_template!F164/'Base model'!$B$20/(1+$F$19) -> 2.73660254 | M98: =SUMPRODUCT(Sim_template!G151:G155,Sim_template!G181:G185)/Sim_template!G164/'Base model'!$B$20/(1+$F$19) -> 2.73660254 | N98: =SUMPRODUCT(Sim_template!H151:H155,Sim_template!H181:H185)/Sim_template!H164/'Base model'!$B$20/(1+$F$19) -> 2.73660254 | O98: =SUMPRODUCT(Sim_template!I151:I155,Sim_template!I181:I185)/Sim_template!I164/'Base model'!$B$20/(1+$F$19) -> 2.768278182 | P98: =SUMPRODUCT(Sim_template!J151:J155,Sim_template!J181:J185)/Sim_template!J164/'Base model'!$B$20/(1+$F$19) -> 2.768278182 | Q98: =SUMPRODUCT(Sim_template!K151:K155,Sim_template!K181:K185)/Sim_template!K164/'Base model'!$B$20/(1+$F$19) -> 2.784699344 | R98: =SUMPRODUCT(Sim_template!L151:L155,Sim_template!L181:L185)/Sim_template!L164/'Base model'!$B$20/(1+$F$19) -> 2.784699344 | S98: =SUMPRODUCT(Sim_template!M151:M155,Sim_template!M181:M185)/Sim_template!M164/'Base model'!$B$20/(1+$F$19) -> 2.784699344 | T98: =SUMPRODUCT(Sim_template!N151:N155,Sim_template!N181:N185)/Sim_template!N164/'Base model'!$B$20/(1+$F$19) -> 2.784699344 | U98: =SUMPRODUCT(Sim_template!O151:O155,Sim_template!O181:O185)/Sim_template!O164/'Base model'!$B$20/(1+$F$19) -> 2.959498714 | V98: =SUMPRODUCT(Sim_template!P151:P155,Sim_template!P181:P185)/Sim_template!P164/'Base model'!$B$20/(1+$F$19) -> 3.086979068 | W98: =SUMPRODUCT(Sim_template!Q151:Q155,Sim_template!Q181:Q185)/Sim_template!Q164/'Base model'!$B$20/(1+$F$19) -> 2.784699344
B99: c | D99: Variable cost | H99: $/km occupied | J99: ='Base model'!J14*(1+$F$21) -> 0.4828223323 | K99: ='Base model'!K14*(1+$F$21) -> 0.4828223323 | L99: ='Base model'!L14*(1+$F$21) -> 0.4828223323 | M99: ='Base model'!M14*(1+$F$21) -> 0.4828223323 | N99: ='Base model'!N14*(1+$F$21) -> 0.4828223323 | O99: ='Base model'!O14*(1+$F$21) -> 0.4828223323 | P99: ='Base model'!P14*(1+$F$21) -> 0.4828223323 | Q99: ='Base model'!Q14*(1+$F$21) -> 0.4828223323 | R99: ='Base model'!R14*(1+$F$21) -> 0.4828223323 | S99: ='Base model'!S14*(1+$F$21) -> 0.4828223323 | T99: ='Base model'!T14*(1+$F$21) -> 0.4828223323 | U99: ='Base model'!U14*(1+$F$21) -> 0.4828223323 | V99: ='Base model'!V14*(1+$F$21) -> 0.4828223323 | W99: ='Base model'!W14*(1+$F$21) -> 0.4828223323
D100: Fixed component of shift costs | H100: $/taxi/shift | J100: ='Base model'!J15*(1+$F$21) -> 131.2335063 | K100: ='Base model'!K15*(1+$F$21) -> 131.2335063 | L100: ='Base model'!L15*(1+$F$21) -> 131.2335063 | M100: ='Base model'!M15*(1+$F$21) -> 131.2335063 | N100: ='Base model'!N15*(1+$F$21) -> 131.2335063 | O100: ='Base model'!O15*(1+$F$21) -> 151.9735063 | P100: ='Base model'!P15*(1+$F$21) -> 151.9735063 | Q100: ='Base model'!Q15*(1+$F$21) -> 142.6405063 | R100: ='Base model'!R15*(1+$F$21) -> 142.6405063 | S100: ='Base model'!S15*(1+$F$21) -> 142.6405063 | T100: ='Base model'!T15*(1+$F$21) -> 142.6405063 | U100: ='Base model'!U15*(1+$F$21) -> 163.3805063 | V100: ='Base model'!V15*(1+$F$21) -> 163.3805063 | W100: ='Base model'!W15*(1+$F$21) -> 163.3805063
D101: Variable component of fixed costs | H101: $/additional taxi per shift | J101: ='Base model'!J16*(1+$F$21) -> 0.009 | K101: ='Base model'!K16*(1+$F$21) -> 0.009 | L101: ='Base model'!L16*(1+$F$21) -> 0.009 | M101: ='Base model'!M16*(1+$F$21) -> 0.009 | N101: ='Base model'!N16*(1+$F$21) -> 0.009 | O101: ='Base model'!O16*(1+$F$21) -> 0.009 | P101: ='Base model'!P16*(1+$F$21) -> 0.009 | Q101: ='Base model'!Q16*(1+$F$21) -> 0.009 | R101: ='Base model'!R16*(1+$F$21) -> 0.009 | S101: ='Base model'!S16*(1+$F$21) -> 0.009 | T101: ='Base model'!T16*(1+$F$21) -> 0.009 | U101: ='Base model'!U16*(1+$F$21) -> 0.009 | V101: ='Base model'!V16*(1+$F$21) -> 0.009 | W101: ='Base model'!W16*(1+$F$21) -> 0.009
D102: Waiting time constant | H102: Unit | J102: ='Base model'!J17 -> 24758.6356 | K102: ='Base model'!K17 -> 24758.6356 | L102: ='Base model'!L17 -> 24758.6356 | M102: ='Base model'!M17 -> 24758.6356 | N102: ='Base model'!N17 -> 24758.6356 | O102: ='Base model'!O17 -> 24758.6356 | P102: ='Base model'!P17 -> 24758.6356 | Q102: ='Base model'!Q17 -> 24758.6356 | R102: ='Base model'!R17 -> 24758.6356 | S102: ='Base model'!S17 -> 24758.6356 | T102: ='Base model'!T17 -> 24758.6356 | U102: ='Base model'!U17 -> 24758.6356 | V102: ='Base model'!V17 -> 24758.6356 | W102: ='Base model'!W17 -> 24758.6356
D103: Constant to link occupied taxi kms to occupied taxis | H103: Unit | J103: ='Base model'!J18 -> 0.003125 | K103: ='Base model'!K18 -> 0.003125 | L103: ='Base model'!L18 -> 0.003125 | M103: ='Base model'!M18 -> 0.003125 | N103: ='Base model'!N18 -> 0.003125 | O103: ='Base model'!O18 -> 0.003125 | P103: ='Base model'!P18 -> 0.003125 | Q103: ='Base model'!Q18 -> 0.003125 | R103: ='Base model'!R18 -> 0.003125 | S103: ='Base model'!S18 -> 0.003125 | T103: ='Base model'!T18 -> 0.003125 | U103: ='Base model'!U18 -> 0.003125 | V103: ='Base model'!V18 -> 0.003125 | W103: ='Base model'!W18 -> 0.003125
B105: GST adjustor | D105: =(1+'Inputs and assumptions'!$C$20) -> 1.1
J108: Monday | K108: Tuesday | L108: Wednesday | M108: Thursday | N108: Friday | O108: Saturday | P108: Sunday | Q108: Monday | R108: Tuesday | S108: Wednesday | T108: Thursday | U108: Friday | V108: Saturday | W108: Sunday
B109: SIMULATION MODEL | J109: Day | K109: Day | L109: Day | M109: Day | N109: Day | O109: Day | P109: Day | Q109: Night | R109: Night | S109: Night | T109: Night | U109: Night | V109: Night | W109: Night
B110: Q* | D110: Free entry demand | H110: Occupied kilometres | J110: 413013.3473 | K110: 418468.8614 | L110: 422557.4101 | M110: 450490.8966 | N110: 454488.2366 | O110: 300378.9729 | P110: 269058.3741 | Q110: 324039.7161 | R110: 405942.0574 | S110: 470861.8993 | T110: 559780.4405 | U110: 754187.5087 | V110: 684460.1513 | W110: 287484.7519
B111: W* | D111: Free entry waiting time | H111: Minutes, average | J111: 6.296943065 | K111: 6.515287599 | L111: 6.194052408 | M111: 5.917055864 | N111: 5.880096046 | O111: 8.951552052 | P111: 9.778996877 | Q111: 7.903811889 | R111: 6.664147715 | S111: 5.980036323 | T111: 5.292756216 | U111: 4.426121515 | V111: 4.476684527 | W111: 9.858126738
B112: T* | D112: Free entry number of taxis on the road | H112: Taxis on the road | J112: 5222.516714 | K112: 5107.798493 | L112: 5317.654665 | M112: 5592.066941 | N112: 5630.859277 | O112: 3704.532674 | P112: 3372.62497 | Q112: 4145.117144 | R112: 4983.768033 | S112: 5611.658385 | T112: 6427.147998 | U112: 7950.590123 | V112: 7669.512101 | W112: 3409.884833
B113: Q* zero condition | D113: Zero condition to solve for free entry | H113: Occupied kilometres | J113: =J95-J96*J98-J97*J111-J110 -> 0 | K113: -10092.82901 | L113: 0 | M113: 0 | N113: 0 | O113: 0 | P113: 9.313225746e-10 | Q113: 0 | R113: 0 | S113: 6.4028427e-10 | T113: 0 | U113: 0 | V113: 0 | W113: 0
B114: W* zero condition | D114: Zero condition to solve for free entry | H114: Minutes, average | J114: =J102/(J112-J110*J103)-J111 -> -2.396413734e-09 | K114: -1.246673875e-09 | L114: -2.010303923e-09 | M114: -1.182691278e-09 | N114: -1.13015286e-09 | O114: -6.131608643e-08 | P114: -1.278443413e-07 | Q114: -2.021841983e-08 | R114: -4.413960752e-09 | S114: -4.374183415e-08 | T114: -4.795492003e-09 | U114: -5.056306485e-09 | V114: -4.479044691e-09 | W114: -9.727861361e-08
B115: T* zero condition | D115: Zero condition to solve for free entry | H115: Taxis on the road | J115: =(-J100+SQRT(J100^2+4*J101*(J98-J99)*J110))/(2*J101)-J112 -> 2.412762115e-07 | K115: 169.188526 | L115: 2.099086487e-07 | M115: 1.366870492e-07 | N115: 1.326197889e-07 | O115: -9.989475984e-07 | P115: -9.980662981e-07 | Q115: -9.995437722e-07 | R115: 3.871036824e-07 | S115: -9.993946151e-07 | T115: 5.512683856e-07 | U115: 7.156968422e-07 | V115: 6.114023563e-07 | W115: -9.987115845e-07
B116: Qbar | D116: Fixed taxi numbers demand | H116: Occupied kilometres | J116: =((J103*(J95-J96*J98)+J118)-SQRT((J103*(J95-J96*J98)+J118)^2-4*J103*(J118*(J95-J96*J98)-J97*J102)))/(2*J103) -> 401266.1836 | K116: 399210.6917 | L116: 410552.329 | M116: 436841.147 | N116: 437230.0587 | O116: 306626.9503 | P116: 280582.9899 | Q116: 328803.3648 | R116: 398823.0053 | S116: 456295.8149 | T116: 535176.1594 | U116: 703359.0951 | V116: 637102.0241 | W116: 303548.5908
B117: Wbar | D117: Fixed taxi numbers waiting time | H117: Minutes, average | J117: =J102/(J118-J116*J103) -> 7.766841352 | K117: 7.670250272 | L117: 7.665217869 | M117: 7.494441068 | N117: 7.850635726 | O117: 7.945262392 | P117: 7.743030541 | Q117: 7.167670551 | R117: 7.564056347 | S117: 7.588610915 | T117: 7.608483851 | U117: 8.116699718 | V117: 8.281531397 | W117: 7.007562988
B118: Tbar | D118: Fixed taxi numbers | H118: Taxis on the road | J118: ='Base model'!J8/'Base model'!J6*('Base model'!J6+$F$9) -> 4441.692285 | K118: ='Base model'!K8/'Base model'!K6*('Base model'!K6+$F$9) -> 4475.411867 | L118: ='Base model'!L8/'Base model'!L6*('Base model'!L6+$F$9) -> 4512.973665 | M118: ='Base model'!M8/'Base model'!M6*('Base model'!M6+$F$9) -> 4668.728596 | N118: ='Base model'!N8/'Base model'!N6*('Base model'!N6+$F$9) -> 4520.054851 | O118: ='Base model'!O8/'Base model'!O6*('Base model'!O6+$F$9) -> 4074.36 | P118: ='Base model'!P8/'Base model'!P6*('Base model'!P6+$F$9) -> 4074.36 | Q118: ='Base model'!Q8/'Base model'!Q6*('Base model'!Q6+$F$9+$F$11) -> 4481.72 | R118: ='Base model'!R8/'Base model'!R6*('Base model'!R6+$F$9+$F$11) -> 4519.517445 | S118: ='Base model'!S8/'Base model'!S6*('Base model'!S6+$F$9+$F$11) -> 4688.528853 | T118: ='Base model'!T8/'Base model'!T6*('Base model'!T6+$F$9+$F$11) -> 4926.508189 | U118: ='Base model'!U8/'Base model'!U6*('Base model'!U6+$F$9+$F$11) -> 5248.33 | V118: ='Base model'!V8/'Base model'!V6*('Base model'!V6+$F$9+$F$11) -> 4980.564273 | W118: ='Base model'!W8/'Base model'!W6*('Base model'!W6+$F$9+$F$11) -> 4481.72
B119: Q*_flat | D119: Free entry demand, flat cost curve | H119: Occupied kilometres | J119: =(J95-J96*J98+SQRT((J95-J96*J98)^2-4*J97*J102/((J98-J99)/J100-J103)))/2 -> 430631.4222 | K119: 427353.8278 | L119: 440451.7633 | M119: 469190.4713 | N119: 473381.604 | O119: 314994.7176 | P119: 282818.0594 | Q119: 338850.4945 | R119: 423085.1092 | S119: 489839.7325 | T119: 581234.8958 | U119: 778760.8177 | V119: 706123.0848 | W119: 300722.0416
B120: W*_flat | D120: Free entry waiting time, flat cost curve | H120: Minutes, average | J120: =J102/((J98-J99)/J100-J103)/J119 -> 4.092429812 | K120: 4.123816744 | L120: 4.001184732 | M120: 3.756105416 | N120: 3.722850351 | O120: 6.597562643 | P120: 7.348177786 | Q120: 5.615056561 | R120: 4.49712044 | S120: 3.884259618 | T120: 3.273486685 | U120: 2.641888797 | V120: 2.736241025 | W120: 7.509140389
B121: T*_flat | D121: Free entry number of taxis on the road, flat cost curve | H121: Taxis on the road | J121: =(J98-J99)*J119/J100 -> 7395.585193 | K121: 7339.296385 | L121: 7564.237932 | M121: 8057.791241 | N121: 8129.768986 | O121: 4737.052774 | P121: 4253.163618 | Q121: 5468.237485 | R121: 6827.582934 | S121: 7904.843081 | T121: 9379.742679 | U121: 11805.1937 | V121: 11255.04645 | W121: 4236.889516
B122: Q | D122: Equilibrium demand | H122: Occupied kilometres | J122: =IF(J124=J$118,J116,IF('Inputs and assumptions'!$C$61="Flat",J119,J110)) -> 401266.1836 | K122: =IF(K124=K$118,K116,IF('Inputs and assumptions'!$C$61="Flat",K119,K110)) -> 399210.6917 | L122: =IF(L124=L$118,L116,IF('Inputs and assumptions'!$C$61="Flat",L119,L110)) -> 410552.329 | M122: =IF(M124=M$118,M116,IF('Inputs and assumptions'!$C$61="Flat",M119,M110)) -> 436841.147 | N122: =IF(N124=N$118,N116,IF('Inputs and assumptions'!$C$61="Flat",N119,N110)) -> 437230.0587 | O122: =IF(O124=O$118,O116,IF('Inputs and assumptions'!$C$61="Flat",O119,O110)) -> 300378.9729 | P122: =IF(P124=P$118,P116,IF('Inputs and assumptions'!$C$61="Flat",P119,P110)) -> 269058.3741 | Q122: =IF(Q124=Q$118,Q116,IF('Inputs and assumptions'!$C$61="Flat",Q119,Q110)) -> 324039.7161 | R122: =IF(R124=R$118,R116,IF('Inputs and assumptions'!$C$61="Flat",R119,R110)) -> 398823.0053 | S122: =IF(S124=S$118,S116,IF('Inputs and assumptions'!$C$61="Flat",S119,S110)) -> 456295.8149 | T122: =IF(T124=T$118,T116,IF('Inputs and assumptions'!$C$61="Flat",T119,T110)) -> 535176.1594 | U122: =IF(U124=U$118,U116,IF('Inputs and assumptions'!$C$61="Flat",U119,U110)) -> 703359.0951 | V122: =IF(V124=V$118,V116,IF('Inputs and assumptions'!$C$61="Flat",V119,V110)) -> 637102.0241 | W122: =IF(W124=W$118,W116,IF('Inputs and assumptions'!$C$61="Flat",W119,W110)) -> 287484.7519
B123: W | D123: Equilibrium waiting time | H123: Minutes, average | J123: =IF(J124=J$118,J117,IF('Inputs and assumptions'!$C$61="Flat",J120,J111)) -> 7.766841352 | K123: =IF(K124=K$118,K117,IF('Inputs and assumptions'!$C$61="Flat",K120,K111)) -> 7.670250272 | L123: =IF(L124=L$118,L117,IF('Inputs and assumptions'!$C$61="Flat",L120,L111)) -> 7.665217869 | M123: =IF(M124=M$118,M117,IF('Inputs and assumptions'!$C$61="Flat",M120,M111)) -> 7.494441068 | N123: =IF(N124=N$118,N117,IF('Inputs and assumptions'!$C$61="Flat",N120,N111)) -> 7.850635726 | O123: =IF(O124=O$118,O117,IF('Inputs and assumptions'!$C$61="Flat",O120,O111)) -> 8.951552052 | P123: =IF(P124=P$118,P117,IF('Inputs and assumptions'!$C$61="Flat",P120,P111)) -> 9.778996877 | Q123: =IF(Q124=Q$118,Q117,IF('Inputs and assumptions'!$C$61="Flat",Q120,Q111)) -> 7.903811889 | R123: =IF(R124=R$118,R117,IF('Inputs and assumptions'!$C$61="Flat",R120,R111)) -> 7.564056347 | S123: =IF(S124=S$118,S117,IF('Inputs and assumptions'!$C$61="Flat",S120,S111)) -> 7.588610915 | T123: =IF(T124=T$118,T117,IF('Inputs and assumptions'!$C$61="Flat",T120,T111)) -> 7.608483851 | U123: =IF(U124=U$118,U117,IF('Inputs and assumptions'!$C$61="Flat",U120,U111)) -> 8.116699718 | V123: =IF(V124=V$118,V117,IF('Inputs and assumptions'!$C$61="Flat",V120,V111)) -> 8.281531397 | W123: =IF(W124=W$118,W117,IF('Inputs and assumptions'!$C$61="Flat",W120,W111)) -> 9.858126738
B124: T | D124: Equilibrium number of taxis on the road | H124: Taxis on the road | J124: =IF('Inputs and assumptions'!$C$61="Flat",MIN(J121,J118),MIN(J112,J118)) -> 4441.692285 | K124: =IF('Inputs and assumptions'!$C$61="Flat",MIN(K121,K118),MIN(K112,K118)) -> 4475.411867 | L124: =IF('Inputs and assumptions'!$C$61="Flat",MIN(L121,L118),MIN(L112,L118)) -> 4512.973665 | M124: =IF('Inputs and assumptions'!$C$61="Flat",MIN(M121,M118),MIN(M112,M118)) -> 4668.728596 | N124: =IF('Inputs and assumptions'!$C$61="Flat",MIN(N121,N118),MIN(N112,N118)) -> 4520.054851 | O124: =IF('Inputs and assumptions'!$C$61="Flat",MIN(O121,O118),MIN(O112,O118)) -> 3704.532674 | P124: =IF('Inputs and assumptions'!$C$61="Flat",MIN(P121,P118),MIN(P112,P118)) -> 3372.62497 | Q124: =IF('Inputs and assumptions'!$C$61="Flat",MIN(Q121,Q118),MIN(Q112,Q118)) -> 4145.117144 | R124: =IF('Inputs and assumptions'!$C$61="Flat",MIN(R121,R118),MIN(R112,R118)) -> 4519.517445 | S124: =IF('Inputs and assumptions'!$C$61="Flat",MIN(S121,S118),MIN(S112,S118)) -> 4688.528853 | T124: =IF('Inputs and assumptions'!$C$61="Flat",MIN(T121,T118),MIN(T112,T118)) -> 4926.508189 | U124: =IF('Inputs and assumptions'!$C$61="Flat",MIN(U121,U118),MIN(U112,U118)) -> 5248.33 | V124: =IF('Inputs and assumptions'!$C$61="Flat",MIN(V121,V118),MIN(V112,V118)) -> 4980.564273 | W124: =IF('Inputs and assumptions'!$C$61="Flat",MIN(W121,W118),MIN(W112,W118)) -> 3409.884833
B125: Difference between free entry and actual (for info) | J125: =J112-J118 -> 780.8244286 | K125: =K112-K118 -> 632.3866263 | L125: 804.6810006 | M125: 923.3383451 | N125: 1110.804425 | O125: -369.8273265 | P125: =P112-P118 -> -701.7350298 | Q125: -336.6028556 | R125: 464.2505879 | S125: 923.1295314 | T125: 1500.63981 | U125: 2702.260123 | V125: 2688.947828 | W125: -1071.835167
B129: Baseline data
B130: Baseline taxis on the road | H130: No. | J130: ='Base model'!J124 -> 4441.692285 | K130: ='Base model'!K124 -> 4475.411867 | L130: ='Base model'!L124 -> 4512.973665 | M130: ='Base model'!M124 -> 4668.728596 | N130: ='Base model'!N124 -> 4520.054851 | O130: ='Base model'!O124 -> 3636.931504 | P130: ='Base model'!P124 -> 3308.553483 | Q130: ='Base model'!Q124 -> 4094.124209 | R130: ='Base model'!R124 -> 4327.915044 | S130: ='Base model'!S124 -> 4489.761308 | T130: ='Base model'!T124 -> 4717.651643 | U130: ='Base model'!U124 -> 5025.83 | V130: ='Base model'!V124 -> 4769.41605 | W130: ='Base model'!W124 -> 3367.423977
B131: Additional taxis on the road | H131: No. | J131: =J124-J130 -> 0 | K131: 0 | L131: 0 | M131: 0 | N131: 0 | O131: 67.60116969 | P131: 64.07148768 | Q131: 50.9929353 | R131: 191.6024014 | S131: 198.7675451 | T131: 208.8565452 | U131: 222.5 | V131: 211.1482225 | W131: 42.46085589
B132: Baseline revenue per taxi | H132: $/taxi | J132: ='Base model'!J141 -> 267.4212239 | K132: ='Base model'!K141 -> 264.0367523 | L132: ='Base model'!L141 -> 269.2947339 | M132: ='Base model'!M141 -> 277.0046569 | N132: ='Base model'!N141 -> 286.3859073 | O132: ='Base model'!O141 -> 245.4220151 | P132: ='Base model'!P141 -> 241.4951194 | Q132: ='Base model'!Q141 -> 237.6369348 | R132: ='Base model'!R141 -> 275.0594378 | S132: ='Base model'!S141 -> 303.3618741 | T132: ='Base model'!T141 -> 338.636111 | U132: ='Base model'!U141 -> 438.4021448 | V132: ='Base model'!V141 -> 434.3474806 | W132: ='Base model'!W141 -> 256.4369646
B133: Simulation revenue per taxi | H133: $/taxi | J133: =J64 -> 271.9496502 | K133: 268.5181002 | L133: 273.848352 | M133: 281.6626892 | N133: 291.1861518 | O133: 246.9099055 | P133: 242.9298473 | Q133: 239.4596989 | R133: 270.3081451 | S133: 298.1129829 | T133: 332.7580321 | U133: 436.2815164 | V133: 434.3669824 | W133: 258.2534317
B134: Headings for charts | J134: Day | Q134: Night
J135: Monday | K135: Tuesday | L135: Wednesday | M135: Thursday | N135: Friday | O135: Saturday | P135: Sunday | Q135: Monday | R135: Tuesday | S135: Wednesday | T135: Thursday | U135: Friday | V135: Saturday | W135: Sunday
B138: Revenue | C138: 2012/13
C139: Revenue | D139: Revenue share
B140: Flagfall ($) | C140: =R36*R165 -> 2901869.334 | D140: =C140/$C$145 -> 0.1594503149
B141: Standard kilometre charge ($/km) | C141: =R38*R166 -> 7921310.31 | D141: 0.435255788
B142: Night kilometre charge ($/km) | C142: =R39*R167 -> 2998114.012 | D142: 0.1647387144
B143: Waiting time ($/hour when vehicle slower than 26km/hour) | C143: =R40*R168 -> 3979942.981 | D143: 0.2186877108
B144: Booking fee ($/booking) | C144: =R41*R169 -> 397970.6515 | D144: 0.02186747176
B145: Weighted average | C145: =SUM(C140:C144) -> 18199207.29 | D145: 1
B148: Fare setting for 2013/14 | T148: DO NOT DELETE
B149: Fares | D149: Monday | E149: Tuesday | F149: Wednesday | G149: Thursday | H149: Friday | I149: Saturday | J149: Sunday | K149: Monday | L149: Tuesday | M149: Wednesday | N149: Thursday | O149: Friday | P149: Saturday | Q149: Sunday | T149: Yes
D150: Day | E150: Day | F150: Day | G150: Day | H150: Day | I150: Day | J150: Day | K150: Night | L150: Night | M150: Night | N150: Night | O150: Night | P150: Night | Q150: Night | T150: No
B151: Average flagfall ($) | D151: =IF(AND(J35="Yes", $J$31="5 pm until 5 am"), $L$12+(1-'Inputs and assumptions'!D10)*Sim_template!$J$27, IF(AND(J35="Yes", $J$31="10 pm until 6 am"), $L$12+(1-'Inputs and assumptions'!D9)*Sim_template!$J$27, IF(AND(J35="Yes", $J$31="12 am until 5 am"), $L$12+(1-'Inputs and assumptions'!D11)*Sim_template!$J$27, $L$12))) -> 3.5 | E151: =IF(AND(J36="Yes", $J$31="5 pm until 5 am"), $L$12+(1-'Inputs and assumptions'!E10)*Sim_template!$J$27, IF(AND(J36="Yes", $J$31="10 pm until 6 am"), $L$12+(1-'Inputs and assumptions'!E9)*Sim_template!$J$27, IF(AND(J36="Yes", $J$31="12 am until 5 am"), $L$12+(1-'Inputs and assumptions'!E11)*Sim_template!$J$27, $L$12))) -> 3.5 | F151: =IF(AND(J37="Yes", $J$31="5 pm until 5 am"), $L$12+(1-'Inputs and assumptions'!F10)*Sim_template!$J$27, IF(AND(J37="Yes", $J$31="10 pm until 6 am"), $L$12+(1-'Inputs and assumptions'!F9)*Sim_template!$J$27, IF(AND(J37="Yes", $J$31="12 am until 5 am"), $L$12+(1-'Inputs and assumptions'!F11)*Sim_template!$J$27, $L$12))) -> 3.5 | G151: =IF(AND(J38="Yes", $J$31="5 pm until 5 am"), $L$12+(1-'Inputs and assumptions'!G10)*Sim_template!$J$27, IF(AND(J38="Yes", $J$31="10 pm until 6 am"), $L$12+(1-'Inputs and assumptions'!G9)*Sim_template!$J$27, IF(AND(J38="Yes", $J$31="12 am until 5 am"), $L$12+(1-'Inputs and assumptions'!G11)*Sim_template!$J$27, $L$12))) -> 3.5 | H151: =IF(AND(J39="Yes", $J$31="5 pm until 5 am"), $L$12+(1-'Inputs and assumptions'!H10)*Sim_template!$J$27, IF(AND(J39="Yes", $J$31="10 pm until 6 am"), $L$12+(1-'Inputs and assumptions'!H9)*Sim_template!$J$27, IF(AND(J39="Yes", $J$31="12 am until 5 am"), $L$12+(1-'Inputs and assumptions'!H11)*Sim_template!$J$27, $L$12))) -> 3.5 | I151: =IF(AND(J40="Yes", $J$31="5 pm until 5 am"), $L$12+(1-'Inputs and assumptions'!I10)*Sim_template!$J$27, IF(AND(J40="Yes", $J$31="10 pm until 6 am"), $L$12+(1-'Inputs and assumptions'!I9)*Sim_template!$J$27, IF(AND(J40="Yes", $J$31="12 am until 5 am"), $L$12+(1-'Inputs and assumptions'!I11)*Sim_template!$J$27, $L$12))) -> 3.75 | J151: =IF(AND(J41="Yes", $J$31="5 pm until 5 am"), $L$12+(1-'Inputs and assumptions'!J10)*Sim_template!$J$27, IF(AND(J41="Yes", $J$31="10 pm until 6 am"), $L$12+(1-'Inputs and assumptions'!J9)*Sim_template!$J$27, IF(AND(J41="Yes", $J$31="12 am until 5 am"), $L$12+(1-'Inputs and assumptions'!J11)*Sim_template!$J$27, $L$12))) -> 3.75 | K151: =IF(AND(J42="Yes", $J$31="5 pm until 5 am"), $L$12+(1-'Inputs and assumptions'!K10)*Sim_template!$J$27, IF(AND(J42="Yes", $J$31="10 pm until 6 am"), $L$12+(1-'Inputs and assumptions'!K9)*Sim_template!$J$27, IF(AND(J42="Yes", $J$31="12 am until 5 am"), $L$12+(1-'Inputs and assumptions'!K11)*Sim_template!$J$27, $L$12))) -> 3.5 | L151: =IF(AND(J43="Yes", $J$31="5 pm until 5 am"), $L$12+(1-'Inputs and assumptions'!L10)*Sim_template!$J$27, IF(AND(J43="Yes", $J$31="10 pm until 6 am"), $L$12+(1-'Inputs and assumptions'!L9)*Sim_template!$J$27, IF(AND(J43="Yes", $J$31="12 am until 5 am"), $L$12+(1-'Inputs and assumptions'!L11)*Sim_template!$J$27, $L$12))) -> 3.5 | M151: =IF(AND(J44="Yes", $J$31="5 pm until 5 am"), $L$12+(1-'Inputs and assumptions'!M10)*Sim_template!$J$27, IF(AND(J44="Yes", $J$31="10 pm until 6 am"), $L$12+(1-'Inputs and assumptions'!M9)*Sim_template!$J$27, IF(AND(J44="Yes", $J$31="12 am until 5 am"), $L$12+(1-'Inputs and assumptions'!M11)*Sim_template!$J$27, $L$12))) -> 3.5 | N151: =IF(AND(J45="Yes", $J$31="5 pm until 5 am"), $L$12+(1-'Inputs and assumptions'!N10)*Sim_template!$J$27, IF(AND(J45="Yes", $J$31="10 pm until 6 am"), $L$12+(1-'Inputs and assumptions'!N9)*Sim_template!$J$27, IF(AND(J45="Yes", $J$31="12 am until 5 am"), $L$12+(1-'Inputs and assumptions'!N11)*Sim_template!$J$27, $L$12))) -> 3.5 | O151: =IF(AND(J46="Yes", $J$31="5 pm until 5 am"), $L$12+(1-'Inputs and assumptions'!O10)*Sim_template!$J$27, IF(AND(J46="Yes", $J$31="10 pm until 6 am"), $L$12+(1-'Inputs and assumptions'!O9)*Sim_template!$J$27, IF(AND(J46="Yes", $J$31="12 am until 5 am"), $L$12+(1-'Inputs and assumptions'!O11)*Sim_template!$J$27, $L$12))) -> 4.5 | P151: =IF(AND(J47="Yes", $J$31="5 pm until 5 am"), $L$12+(1-'Inputs and assumptions'!P10)*Sim_template!$J$27, IF(AND(J47="Yes", $J$31="10 pm until 6 am"), $L$12+(1-'Inputs and assumptions'!P9)*Sim_template!$J$27, IF(AND(J47="Yes", $J$31="12 am until 5 am"), $L$12+(1-'Inputs and assumptions'!P11)*Sim_template!$J$27, $L$12))) -> 5 | Q151: =IF(AND(J48="Yes", $J$31="5 pm until 5 am"), $L$12+(1-'Inputs and assumptions'!Q10)*Sim_template!$J$27, IF(AND(J48="Yes", $J$31="10 pm until 6 am"), $L$12+(1-'Inputs and assumptions'!Q9)*Sim_template!$J$27, IF(AND(J48="Yes", $J$31="12 am until 5 am"), $L$12+(1-'Inputs and assumptions'!Q11)*Sim_template!$J$27, $L$12))) -> 3.5
B152: Standard kilometre charge ($/km) | D152: =$L$14 -> 2.14 | E152: 2.14 | F152: 2.14 | G152: 2.14 | H152: 2.14 | I152: 2.14 | J152: 2.14 | K152: 2.14 | L152: 2.14 | M152: 2.14 | N152: 2.14 | O152: 2.14 | P152: 2.14 | Q152: 2.14 | T152: DO NOT DELETE
B153: Night kilometre charge ($/km) | D153: =IF(L35="No",L14,IF(L35="Yes",$K$29,"na")) -> 2.57 | E153: =IF(L36="No",D152,IF(L36="Yes",$K$29,"na")) -> 2.57 | F153: =IF(L37="No",E152,IF(L37="Yes",$K$29,"na")) -> 2.57 | G153: =IF(L38="No",F152,IF(L38="Yes",$K$29,"na")) -> 2.57 | H153: =IF(L39="No",G152,IF(L39="Yes",$K$29,"na")) -> 2.57 | I153: =IF(L40="No",H152,IF(L40="Yes",$K$29,"na")) -> 2.57 | J153: =IF(L41="No",I152,IF(L41="Yes",$K$29,"na")) -> 2.57 | K153: =IF(L42="No",J152,IF(L42="Yes",$K$29,"na")) -> 2.57 | L153: =IF(L43="No",K152,IF(L43="Yes",$K$29,"na")) -> 2.57 | M153: =IF(L44="No",L152,IF(L44="Yes",$K$29,"na")) -> 2.57 | N153: =IF(L45="No",M152,IF(L45="Yes",$K$29,"na")) -> 2.57 | O153: =IF(L46="No",N152,IF(L46="Yes",$K$29,"na")) -> 2.57 | P153: =IF(L47="No",O152,IF(L47="Yes",$K$29,"na")) -> 2.57 | Q153: =IF(L48="No",P152,IF(L48="Yes",$K$29,"na")) -> 2.57 | T153: 10 pm until 6 am
B154: Waiting time ($/hour when vehicle slower than 26km/hour) | D154: =$L$16 -> 55.3 | E154: 55.3 | F154: 55.3 | G154: 55.3 | H154: 55.3 | I154: 55.3 | J154: 55.3 | K154: 55.3 | L154: 55.3 | M154: 55.3 | N154: 55.3 | O154: 55.3 | P154: 55.3 | Q154: 55.3 | T154: 5 pm until 5 am
B155: Booking fee ($/booking) | D155: =$L$21 -> 2.4 | E155: 2.4 | F155: 2.4 | G155: 2.4 | H155: 2.4 | I155: 2.4 | J155: 2.4 | K155: 2.4 | L155: 2.4 | M155: 2.4 | N155: 2.4 | O155: 2.4 | P155: 2.4 | Q155: 2.4 | T155: 12 am until 5 am
F157: Km threshold for waiting
B158: For fare goal seek | D158: =L9-F27 -> -0.002428656155 | F158: 2012/13
F159: =ROUND(R40/R38,0) -> 26
B161: Weights 2012/13
D162: Monday | E162: Tuesday | F162: Wednesday | G162: Thursday | H162: Friday | I162: Saturday | J162: Sunday | K162: Monday | L162: Tuesday | M162: Wednesday | N162: Thursday | O162: Friday | P162: Saturday | Q162: Sunday | R162: Total
D163: Day | E163: Day | F163: Day | G163: Day | H163: Day | I163: Day | J163: Day | K163: Night | L163: Night | M163: Night | N163: Night | O163: Night | P163: Night | Q163: Night
B164: Occupied kms | D164: ='Base model'!J9 -> 382718.9454 | E164: ='Base model'!K9 -> 380027.3817 | F164: ='Base model'!L9 -> 390784.9258 | G164: ='Base model'!M9 -> 414401.3346 | H164: ='Base model'!N9 -> 419415.022 | I164: ='Base model'!O9 -> 297338.1731 | J164: ='Base model'!P9 -> 271075.3871 | K164: ='Base model'!Q9 -> 315327.6217 | L164: ='Base model'!R9 -> 385484.7998 | M164: ='Base model'!S9 -> 441250.4054 | N164: ='Base model'!T9 -> 517734.0189 | O164: ='Base model'!U9 -> 682678.0371 | P164: ='Base model'!V9 -> 630901.6342 | Q164: ='Base model'!W9 -> 274600.9802
B165: Flagfall (no of trips) | D165: =D164/'Inputs and assumptions'!$C$44 -> 54674.13506 | E165: ='Base model'!K9/'Inputs and assumptions'!$C$44 -> 54289.62595 | F165: ='Base model'!L9/'Inputs and assumptions'!$C$44 -> 55826.41797 | G165: ='Base model'!M9/'Inputs and assumptions'!$C$44 -> 59200.19066 | H165: ='Base model'!N9/'Inputs and assumptions'!$C$44 -> 59916.43172 | I165: ='Base model'!O9/'Inputs and assumptions'!$C$44 -> 42476.88188 | J165: ='Base model'!P9/'Inputs and assumptions'!$C$44 -> 38725.0553 | K165: ='Base model'!Q9/'Inputs and assumptions'!$C$44 -> 45046.8031 | L165: ='Base model'!R9/'Inputs and assumptions'!$C$44 -> 55069.25712 | M165: ='Base model'!S9/'Inputs and assumptions'!$C$44 -> 63035.7722 | N165: ='Base model'!T9/'Inputs and assumptions'!$C$44 -> 73962.00271 | O165: ='Base model'!U9/'Inputs and assumptions'!$C$44 -> 97525.43387 | P165: ='Base model'!V9/'Inputs and assumptions'!$C$44 -> 90128.80489 | Q165: ='Base model'!W9/'Inputs and assumptions'!$C$44 -> 39228.71145 | R165: =SUM(D165:Q165) -> 829105.5239
B166: Standard kilometre charge (kms) | D166: =D164*'Inputs and assumptions'!D9*('Inputs and assumptions'!$C$52/'Inputs and assumptions'!$C$44) -> 288919.3498 | E166: =E164*'Inputs and assumptions'!E9*('Inputs and assumptions'!$C$52/'Inputs and assumptions'!$C$44) -> 286887.4545 | F166: =F164*'Inputs and assumptions'!F9*('Inputs and assumptions'!$C$52/'Inputs and assumptions'!$C$44) -> 295008.46 | G166: =G164*'Inputs and assumptions'!G9*('Inputs and assumptions'!$C$52/'Inputs and assumptions'!$C$44) -> 312836.7843 | H166: =H164*'Inputs and assumptions'!H9*('Inputs and assumptions'!$C$52/'Inputs and assumptions'!$C$44) -> 316621.68 | I166: =I164*'Inputs and assumptions'!I9*('Inputs and assumptions'!$C$52/'Inputs and assumptions'!$C$44) -> 224464.33 | J166: =J164*'Inputs and assumptions'!J9*('Inputs and assumptions'!$C$52/'Inputs and assumptions'!$C$44) -> 204638.2222 | K166: =K164*'Inputs and assumptions'!K9*('Inputs and assumptions'!$C$52/'Inputs and assumptions'!$C$44) -> 198370.6593 | L166: =L164*'Inputs and assumptions'!L9*('Inputs and assumptions'!$C$52/'Inputs and assumptions'!$C$44) -> 242506.1068 | M166: =M164*'Inputs and assumptions'!M9*('Inputs and assumptions'!$C$52/'Inputs and assumptions'!$C$44) -> 277587.9049 | N166: =N164*'Inputs and assumptions'!N9*('Inputs and assumptions'!$C$52/'Inputs and assumptions'!$C$44) -> 325703.2737 | O166: =O164*'Inputs and assumptions'!O9*('Inputs and assumptions'!$C$52/'Inputs and assumptions'!$C$44) -> 343574.8295 | P166: =P164*'Inputs and assumptions'!P9*('Inputs and assumptions'!$C$52/'Inputs and assumptions'!$C$44) -> 211678.0382 | Q166: =Q164*'Inputs and assumptions'!Q9*('Inputs and assumptions'!$C$52/'Inputs and assumptions'!$C$44) -> 172749.7807 | R166: =SUM(D166:Q166) -> 3701546.874
B167: Night kilometre charge (kms) | D167: =D164*(1-'Inputs and assumptions'!D9)*('Inputs and assumptions'!$C$52/'Inputs and assumptions'!$C$44) -> 32102.14998 | E167: =E164*(1-'Inputs and assumptions'!E9)*('Inputs and assumptions'!$C$52/'Inputs and assumptions'!$C$44) -> 31876.38383 | F167: =F164*(1-'Inputs and assumptions'!F9)*('Inputs and assumptions'!$C$52/'Inputs and assumptions'!$C$44) -> 32778.71777 | G167: =G164*(1-'Inputs and assumptions'!G9)*('Inputs and assumptions'!$C$52/'Inputs and assumptions'!$C$44) -> 34759.6427 | H167: =H164*(1-'Inputs and assumptions'!H9)*('Inputs and assumptions'!$C$52/'Inputs and assumptions'!$C$44) -> 35180.18667 | I167: =I164*(1-'Inputs and assumptions'!I9)*('Inputs and assumptions'!$C$52/'Inputs and assumptions'!$C$44) -> 24940.48111 | J167: =J164*(1-'Inputs and assumptions'!J9)*('Inputs and assumptions'!$C$52/'Inputs and assumptions'!$C$44) -> 22737.58024 | K167: =K164*(1-'Inputs and assumptions'!K9)*('Inputs and assumptions'!$C$52/'Inputs and assumptions'!$C$44) -> 66123.5531 | L167: =L164*(1-'Inputs and assumptions'!L9)*('Inputs and assumptions'!$C$52/'Inputs and assumptions'!$C$44) -> 80835.36893 | M167: =M164*(1-'Inputs and assumptions'!M9)*('Inputs and assumptions'!$C$52/'Inputs and assumptions'!$C$44) -> 92529.30162 | N167: =N164*(1-'Inputs and assumptions'!N9)*('Inputs and assumptions'!$C$52/'Inputs and assumptions'!$C$44) -> 108567.7579 | O167: =O164*(1-'Inputs and assumptions'!O9)*('Inputs and assumptions'!$C$52/'Inputs and assumptions'!$C$44) -> 229049.8863 | P167: =P164*(1-'Inputs and assumptions'!P9)*('Inputs and assumptions'!$C$52/'Inputs and assumptions'!$C$44) -> 317517.0573 | Q167: =Q164*(1-'Inputs and assumptions'!Q9)*('Inputs and assumptions'!$C$52/'Inputs and assumptions'!$C$44) -> 57583.26022 | R167: =SUM(D167:Q167) -> 1166581.328
B168: Waiting time (hours) | D168: ='Inputs and assumptions'!$C$51/60*Sim_template!D165 -> 4745.957355 | E168: ='Inputs and assumptions'!$C$51/60*Sim_template!E165 -> 4712.580259 | F168: ='Inputs and assumptions'!$C$51/60*Sim_template!F165 -> 4845.980621 | G168: ='Inputs and assumptions'!$C$51/60*Sim_template!G165 -> 5138.83905 | H168: ='Inputs and assumptions'!$C$51/60*Sim_template!H165 -> 5201.011949 | I168: ='Inputs and assumptions'!$C$51/60*Sim_template!I165 -> 3687.181694 | J168: ='Inputs and assumptions'!$C$51/60*Sim_template!J165 -> 3361.506511 | K168: ='Inputs and assumptions'!$C$51/60*Sim_template!K165 -> 3910.262252 | L168: ='Inputs and assumptions'!$C$51/60*Sim_template!L165 -> 4780.255702 | M168: ='Inputs and assumptions'!$C$51/60*Sim_template!M165 -> 5471.784535 | N168: ='Inputs and assumptions'!$C$51/60*Sim_template!N165 -> 6420.229791 | O168: ='Inputs and assumptions'!$C$51/60*Sim_template!O165 -> 8465.640099 | P168: ='Inputs and assumptions'!$C$51/60*Sim_template!P165 -> 7823.579906 | Q168: ='Inputs and assumptions'!$C$51/60*Sim_template!Q165 -> 3405.226099 | R168: =SUM(D168:Q168) -> 71970.03582
B169: Booking fee (number) | D169: =D165*'Inputs and assumptions'!$C$47 -> 10934.82701 | E169: =E165*'Inputs and assumptions'!$C$47 -> 10857.92519 | F169: =F165*'Inputs and assumptions'!$C$47 -> 11165.28359 | G169: =G165*'Inputs and assumptions'!$C$47 -> 11840.03813 | H169: =H165*'Inputs and assumptions'!$C$47 -> 11983.28634 | I169: =I165*'Inputs and assumptions'!$C$47 -> 8495.376375 | J169: =J165*'Inputs and assumptions'!$C$47 -> 7745.011059 | K169: =K165*'Inputs and assumptions'!$C$47 -> 9009.360619 | L169: =L165*'Inputs and assumptions'!$C$47 -> 11013.85142 | M169: =M165*'Inputs and assumptions'!$C$47 -> 12607.15444 | N169: =N165*'Inputs and assumptions'!$C$47 -> 14792.40054 | O169: =O165*'Inputs and assumptions'!$C$47 -> 19505.08677 | P169: =P165*'Inputs and assumptions'!$C$47 -> 18025.76098 | Q169: =Q165*'Inputs and assumptions'!$C$47 -> 7845.742291 | R169: =SUM(D169:Q169) -> 165821.1048
B171: Weights 2013/14
B172: Different distance rate night hours adjustment
B173: Distance surcharge hours: | D173: ='Inputs and assumptions'!B9 -> The proportion of trips in each shift for which the standard distance rate currently applies (rather than the night time distance rate)
B174: =Sim_template!L31 -> 10 pm until 6 am | D174: =IF($B$174="5 pm until 5 am", 'Inputs and assumptions'!D10, IF($B$174="12 am until 5 am", 'Inputs and assumptions'!D11,'Inputs and assumptions'!D9)) -> 0.9 | E174: =IF($B$174="5 pm until 5 am", 'Inputs and assumptions'!E10, IF($B$174="12 am until 5 am", 'Inputs and assumptions'!E11,'Inputs and assumptions'!E9)) -> 0.9 | F174: =IF($B$174="5 pm until 5 am", 'Inputs and assumptions'!F10, IF($B$174="12 am until 5 am", 'Inputs and assumptions'!F11,'Inputs and assumptions'!F9)) -> 0.9 | G174: =IF($B$174="5 pm until 5 am", 'Inputs and assumptions'!G10, IF($B$174="12 am until 5 am", 'Inputs and assumptions'!G11,'Inputs and assumptions'!G9)) -> 0.9 | H174: =IF($B$174="5 pm until 5 am", 'Inputs and assumptions'!H10, IF($B$174="12 am until 5 am", 'Inputs and assumptions'!H11,'Inputs and assumptions'!H9)) -> 0.9 | I174: =IF($B$174="5 pm until 5 am", 'Inputs and assumptions'!I10, IF($B$174="12 am until 5 am", 'Inputs and assumptions'!I11,'Inputs and assumptions'!I9)) -> 0.9 | J174: =IF($B$174="5 pm until 5 am", 'Inputs and assumptions'!J10, IF($B$174="12 am until 5 am", 'Inputs and assumptions'!J11,'Inputs and assumptions'!J9)) -> 0.9 | K174: =IF($B$174="5 pm until 5 am", 'Inputs and assumptions'!K10, IF($B$174="12 am until 5 am", 'Inputs and assumptions'!K11,'Inputs and assumptions'!K9)) -> 0.75 | L174: =IF($B$174="5 pm until 5 am", 'Inputs and assumptions'!L10, IF($B$174="12 am until 5 am", 'Inputs and assumptions'!L11,'Inputs and assumptions'!L9)) -> 0.75 | M174: =IF($B$174="5 pm until 5 am", 'Inputs and assumptions'!M10, IF($B$174="12 am until 5 am", 'Inputs and assumptions'!M11,'Inputs and assumptions'!M9)) -> 0.75 | N174: =IF($B$174="5 pm until 5 am", 'Inputs and assumptions'!N10, IF($B$174="12 am until 5 am", 'Inputs and assumptions'!N11,'Inputs and assumptions'!N9)) -> 0.75 | O174: =IF($B$174="5 pm until 5 am", 'Inputs and assumptions'!O10, IF($B$174="12 am until 5 am", 'Inputs and assumptions'!O11,'Inputs and assumptions'!O9)) -> 0.6 | P174: =IF($B$174="5 pm until 5 am", 'Inputs and assumptions'!P10, IF($B$174="12 am until 5 am", 'Inputs and assumptions'!P11,'Inputs and assumptions'!P9)) -> 0.4 | Q174: =IF($B$174="5 pm until 5 am", 'Inputs and assumptions'!Q10, IF($B$174="12 am until 5 am", 'Inputs and assumptions'!Q11,'Inputs and assumptions'!Q9)) -> 0.75
D175: =Sim_template!D162 -> Monday | E175: =Sim_template!E162 -> Tuesday | F175: =Sim_template!F162 -> Wednesday | G175: =Sim_template!G162 -> Thursday | H175: =Sim_template!H162 -> Friday | I175: =Sim_template!I162 -> Saturday | J175: =Sim_template!J162 -> Sunday | K175: =Sim_template!K162 -> Monday | L175: =Sim_template!L162 -> Tuesday | M175: =Sim_template!M162 -> Wednesday | N175: =Sim_template!N162 -> Thursday | O175: =Sim_template!O162 -> Friday | P175: =Sim_template!P162 -> Saturday | Q175: =Sim_template!Q162 -> Sunday | R175: =Sim_template!R162 -> Total
D176: =Sim_template!D163 -> Day | E176: =Sim_template!E163 -> Day | F176: =Sim_template!F163 -> Day | G176: =Sim_template!G163 -> Day | H176: =Sim_template!H163 -> Day | I176: =Sim_template!I163 -> Day | J176: =Sim_template!J163 -> Day | K176: =Sim_template!K163 -> Night | L176: =Sim_template!L163 -> Night | M176: =Sim_template!M163 -> Night | N176: =Sim_template!N163 -> Night | O176: =Sim_template!O163 -> Night | P176: =Sim_template!P163 -> Night | Q176: =Sim_template!Q163 -> Night
B177: =Sim_template!B166 -> Standard kilometre charge (kms) | D177: =D164*D174*('Inputs and assumptions'!$C$52/'Inputs and assumptions'!$C$44) -> 288919.3498 | E177: =E164*E174*('Inputs and assumptions'!$C$52/'Inputs and assumptions'!$C$44) -> 286887.4545 | F177: =F164*F174*('Inputs and assumptions'!$C$52/'Inputs and assumptions'!$C$44) -> 295008.46 | G177: =G164*G174*('Inputs and assumptions'!$C$52/'Inputs and assumptions'!$C$44) -> 312836.7843 | H177: =H164*H174*('Inputs and assumptions'!$C$52/'Inputs and assumptions'!$C$44) -> 316621.68 | I177: =I164*I174*('Inputs and assumptions'!$C$52/'Inputs and assumptions'!$C$44) -> 224464.33 | J177: =J164*J174*('Inputs and assumptions'!$C$52/'Inputs and assumptions'!$C$44) -> 204638.2222 | K177: =K164*K174*('Inputs and assumptions'!$C$52/'Inputs and assumptions'!$C$44) -> 198370.6593 | L177: =L164*L174*('Inputs and assumptions'!$C$52/'Inputs and assumptions'!$C$44) -> 242506.1068 | M177: =M164*M174*('Inputs and assumptions'!$C$52/'Inputs and assumptions'!$C$44) -> 277587.9049 | N177: =N164*N174*('Inputs and assumptions'!$C$52/'Inputs and assumptions'!$C$44) -> 325703.2737 | O177: =O164*O174*('Inputs and assumptions'!$C$52/'Inputs and assumptions'!$C$44) -> 343574.8295 | P177: =P164*P174*('Inputs and assumptions'!$C$52/'Inputs and assumptions'!$C$44) -> 211678.0382 | Q177: =Q164*Q174*('Inputs and assumptions'!$C$52/'Inputs and assumptions'!$C$44) -> 172749.7807 | R177: =SUM(D177:Q177) -> 3701546.874
B178: =Sim_template!B167 -> Night kilometre charge (kms) | D178: =D164*(1-D174)*('Inputs and assumptions'!$C$52/'Inputs and assumptions'!$C$44) -> 32102.14998 | E178: =E164*(1-E174)*('Inputs and assumptions'!$C$52/'Inputs and assumptions'!$C$44) -> 31876.38383 | F178: =F164*(1-F174)*('Inputs and assumptions'!$C$52/'Inputs and assumptions'!$C$44) -> 32778.71777 | G178: =G164*(1-G174)*('Inputs and assumptions'!$C$52/'Inputs and assumptions'!$C$44) -> 34759.6427 | H178: =H164*(1-H174)*('Inputs and assumptions'!$C$52/'Inputs and assumptions'!$C$44) -> 35180.18667 | I178: =I164*(1-I174)*('Inputs and assumptions'!$C$52/'Inputs and assumptions'!$C$44) -> 24940.48111 | J178: =J164*(1-J174)*('Inputs and assumptions'!$C$52/'Inputs and assumptions'!$C$44) -> 22737.58024 | K178: =K164*(1-K174)*('Inputs and assumptions'!$C$52/'Inputs and assumptions'!$C$44) -> 66123.5531 | L178: =L164*(1-L174)*('Inputs and assumptions'!$C$52/'Inputs and assumptions'!$C$44) -> 80835.36893 | M178: =M164*(1-M174)*('Inputs and assumptions'!$C$52/'Inputs and assumptions'!$C$44) -> 92529.30162 | N178: =N164*(1-N174)*('Inputs and assumptions'!$C$52/'Inputs and assumptions'!$C$44) -> 108567.7579 | O178: =O164*(1-O174)*('Inputs and assumptions'!$C$52/'Inputs and assumptions'!$C$44) -> 229049.8863 | P178: =P164*(1-P174)*('Inputs and assumptions'!$C$52/'Inputs and assumptions'!$C$44) -> 317517.0573 | Q178: =Q164*(1-Q174)*('Inputs and assumptions'!$C$52/'Inputs and assumptions'!$C$44) -> 57583.26022 | R178: =SUM(D178:Q178) -> 1166581.328
B180: Waiting time threshold adjustment
B181: Flagfall (no of trips) | D181: =D165 -> 54674.13506 | E181: 54289.62595 | F181: 55826.41797 | G181: 59200.19066 | H181: 59916.43172 | I181: 42476.88188 | J181: 38725.0553 | K181: 45046.8031 | L181: 55069.25712 | M181: 63035.7722 | N181: 73962.00271 | O181: 97525.43387 | P181: 90128.80489 | Q181: 39228.71145 | R181: =SUM(D181:Q181) -> 829105.5239
B182: Standard kilometre charge (kms) | D182: =(D168-D184)*AVERAGE(Sim_template!$F$159:$G$159)*D174+D177 -> 289597.9774 | E182: =(E168-E184)*AVERAGE(Sim_template!$F$159:$G$159)*E174+E177 -> 287561.3094 | F182: =(F168-F184)*AVERAGE(Sim_template!$F$159:$G$159)*F174+F177 -> 295701.3899 | G182: =(G168-G184)*AVERAGE(Sim_template!$F$159:$G$159)*G174+G177 -> 313571.5902 | H182: =(H168-H184)*AVERAGE(Sim_template!$F$159:$G$159)*H174+H177 -> 317365.3761 | I182: =(I168-I184)*AVERAGE(Sim_template!$F$159:$G$159)*I174+I177 -> 224991.5625 | J182: =(J168-J184)*AVERAGE(Sim_template!$F$159:$G$159)*J174+J177 -> 205118.8862 | K182: =(K168-K184)*AVERAGE(Sim_template!$F$159:$G$159)*K174+K177 -> 198836.6018 | L182: =(L168-L184)*AVERAGE(Sim_template!$F$159:$G$159)*L174+L177 -> 243075.7167 | M182: =(M168-M184)*AVERAGE(Sim_template!$F$159:$G$159)*M174+M177 -> 278239.9166 | N182: =(N168-N184)*AVERAGE(Sim_template!$F$159:$G$159)*N174+N177 -> 326468.3011 | O182: =(O168-O184)*AVERAGE(Sim_template!$F$159:$G$159)*O174+O177 -> 344381.8344 | P182: =(P168-P184)*AVERAGE(Sim_template!$F$159:$G$159)*P174+P177 -> 212175.2376 | Q182: =(Q168-Q184)*AVERAGE(Sim_template!$F$159:$G$159)*Q174+Q177 -> 173155.5436 | R182: =SUM(D182:Q182) -> 3710241.244
B183: Night kilometre charge (kms) | D183: =(D168-D184)*AVERAGE(Sim_template!$F$159:$G$159)*(1-D174)+D178 -> 32177.55304 | E183: =(E168-E184)*AVERAGE(Sim_template!$F$159:$G$159)*(1-E174)+E178 -> 31951.2566 | F183: =(F168-F184)*AVERAGE(Sim_template!$F$159:$G$159)*(1-F174)+F178 -> 32855.70999 | G183: =(G168-G184)*AVERAGE(Sim_template!$F$159:$G$159)*(1-G174)+G178 -> 34841.2878 | H183: =(H168-H184)*AVERAGE(Sim_template!$F$159:$G$159)*(1-H174)+H178 -> 35262.81957 | I183: =(I168-I184)*AVERAGE(Sim_template!$F$159:$G$159)*(1-I174)+I178 -> 24999.0625 | J183: =(J168-J184)*AVERAGE(Sim_template!$F$159:$G$159)*(1-J174)+J178 -> 22790.98736 | K183: =(K168-K184)*AVERAGE(Sim_template!$F$159:$G$159)*(1-K174)+K178 -> 66278.86726 | L183: =(L168-L184)*AVERAGE(Sim_template!$F$159:$G$159)*(1-L174)+L178 -> 81025.2389 | M183: =(M168-M184)*AVERAGE(Sim_template!$F$159:$G$159)*(1-M174)+M178 -> 92746.63885 | N183: =(N168-N184)*AVERAGE(Sim_template!$F$159:$G$159)*(1-N174)+N178 -> 108822.767 | O183: =(O168-O184)*AVERAGE(Sim_template!$F$159:$G$159)*(1-O174)+O178 -> 229587.8896 | P183: =(P168-P184)*AVERAGE(Sim_template!$F$159:$G$159)*(1-P174)+P178 -> 318262.8565 | Q183: =(Q168-Q184)*AVERAGE(Sim_template!$F$159:$G$159)*(1-Q174)+Q178 -> 57718.51453 | R183: 1169321.45
B184: Waiting time hours | D184: =D168*(1+(Sim_template!$L$18-Sim_template!$F$159)/Sim_template!$F$159) -> 4716.956177 | E184: =E168*(1+(Sim_template!$L$18-Sim_template!$F$159)/Sim_template!$F$159) -> 4683.78304 | F184: =F168*(1+(Sim_template!$L$18-Sim_template!$F$159)/Sim_template!$F$159) -> 4816.36823 | G184: =G168*(1+(Sim_template!$L$18-Sim_template!$F$159)/Sim_template!$F$159) -> 5107.437086 | H184: =H168*(1+(Sim_template!$L$18-Sim_template!$F$159)/Sim_template!$F$159) -> 5169.230065 | I184: =I168*(1+(Sim_template!$L$18-Sim_template!$F$159)/Sim_template!$F$159) -> 3664.65039 | J184: =J168*(1+(Sim_template!$L$18-Sim_template!$F$159)/Sim_template!$F$159) -> 3340.965314 | K184: =K168*(1+(Sim_template!$L$18-Sim_template!$F$159)/Sim_template!$F$159) -> 3886.367766 | L184: =L168*(1+(Sim_template!$L$18-Sim_template!$F$159)/Sim_template!$F$159) -> 4751.044937 | M184: =M168*(1+(Sim_template!$L$18-Sim_template!$F$159)/Sim_template!$F$159) -> 5438.348037 | N184: =N168*(1+(Sim_template!$L$18-Sim_template!$F$159)/Sim_template!$F$159) -> 6380.997618 | O184: =O168*(1+(Sim_template!$L$18-Sim_template!$F$159)/Sim_template!$F$159) -> 8413.909013 | P184: =P168*(1+(Sim_template!$L$18-Sim_template!$F$159)/Sim_template!$F$159) -> 7775.772265 | Q184: =Q168*(1+(Sim_template!$L$18-Sim_template!$F$159)/Sim_template!$F$159) -> 3384.417744 | R184: 71530.24768
B185: Booking fee (number) | D185: =D169 -> 10934.82701 | E185: =E169 -> 10857.92519 | F185: 11165.28359 | G185: 11840.03813 | H185: 11983.28634 | I185: 8495.376375 | J185: 7745.011059 | K185: 9009.360619 | L185: 11013.85142 | M185: 12607.15444 | N185: 14792.40054 | O185: 19505.08677 | P185: 18025.76098 | Q185: 7845.742291 | R185: 165821.1048
